Workbook

Sheet INSTRUCTIONS
A1: INSTRUCTIONS FOR COMPLETING THE AHC RENTAL APPLICATION & PROFORMA WORKSHEETS
A3: General Instructions
B4: A. | C4: You will only be able to enter information into yellow input cells. All other cells are protected or for AHC use.
B5: B. | C5: Some cells appear black based on data inputted in early sheets/cells. Do not fill in blacked-out cells.
B6: C. | C6: Complete the following worksheets in the order corresponding to their numbering: 1) Application, 2) Development Budget, 3) Construction Costs, 4) Sources & Uses, 5) Utilities, 6) Units & Revenue, 7) Operating Budget, 8) Cash Flow 9) MVA, 10) Priorities, 11) UD (Universal Design, 12) Living Wage, 13) Sustainabilty Impact Statement, and 14) 1099.
B7: D. | C7: All worksheets above must be completed. Information on each worksheet is linked to other sheets.
B8: E. | C8: To print this entire file, click on File>Print and select "Print Entire Workbook."
A9: 1) Application
B10: A. | C10: This is the general application form. Fill all applicable yellow cells. Many sections will prompt you with drop-down menus. Some cells will initially be blank and will populate once you have completed other sheets in this workbook.
B11: C. | C11: Include all documents & exhibits listed in the Application Checklist (Section XI) with each of the three printed hard copy applications (worksheets 1-15) to AHC before the deadline. Email this Excel Spreadsheet file to AHC's Housing Analyst at: hinerl@stlouis-mo.gov. One copy must be in a three-ring binder, with tabs corresponding to each number (on the checklist). Two (2) copies must be secured with a single binder clip and submitted without tabs, staples or paperclips. 3) Applicants must also provide a complete copy of the application and all exhibits on a labeled USB Flash drive. If you have any questions about your proposal, AHC's funding requirements or procedures, or the Excel file, please call Loretta Hiner at 314-657-3883 well before the deadline. The deadline is October 18 at 4:00 p.m.
B12: D. | C12: Sign the certifications on the final page of the Rental Application. Submit the three (3) hard copies with original signatures to AHC.
A13: 2) Development Budget
B14: A. | C14: The Development Budget is 2 pages. Note: construction costs are entered on Tab 3, labeled Construction Costs.
B15: B. | C15: The worksheet will automatically calculate Total Development Costs (TDC).
A16: 3) Construction Costs
B17: A. | C17: Enter detailed construction costs.
B18: B. | C18: Note AHC limits for overhead, general conditions and profits. Stay within the allowable percentage limits.
B19: C. | C19: After completing this Worksheet, review Development Budget (Tab 2), to insure cost data transferred properly.
A20: 4) Summary Sources & Uses
B21: A. | C21: Enter all permanent sources of financing, debt, and equity. Include interest rates where applicable.
B22: B. | C22: Enter the amount of your request to AHC in Cell E25 "AHC Permanent Loan" you may enter 0% interest or another interest rate.
B23: C. | C23: Enter all construction sources along with interest rates. Some may be identical to permanent sources.
B24: D. | C24: Check that permanent sources = uses AND that construction sources = uses.
B25: E. | C25: Enter any additional information you wish to provide to AHC in the "Developer's Notes" section at the bottom of the sheet.
A26: 5) Utilities
B27: A. | C27: Utility Allowances: Indicate the type of utilities the project will have, as well as which will be paid by the owner and which will be paid by tenants. For utilities paid by tenants, enter the utility allowance for each using the utility allowance tables found at www.slha.org/for-partners/owners/forms/
A28: 6) Units & Revenue
B29: A. | C29: Unit Distribution: For each bedroom type, input the requested information. Include the Contract Rent (the rent charged to tenants or rent that a voucher will provide).
B30: B. | C30: Square Footage Breakdown: Enter the commercial square footage and common area square footage, if applicable.
B31: C. | C31: Other Income: Enter other sources of revenue you are reasonably confident the project will receive.
B32: D. | C32: Annual Operating Subsidies: If the project will receive an operating subsidy, enter the source & amount.
A33: 7) Annual Operating Budget
B34: A. | C34: Input a vacancy rate (7% is the default). You may modify this as appropriate.
B35: B. | C35: Enter the expected stabilized operating expenses.
B36: C. | C36: Review the Estimated Mortgage calculations. This is the estimated permanent debt your project can support.
A37: 8) Operating Cash Flow Projections
B38: A. | C38: AHC will assess the project's ability to repay debt. You may modify the default vacancy factor. Be prepared to justify changes.
A39: 9) Market Value Analysis (MVA)
B40: A. | C40: This section is one (1) page. Follow instructions.
A41: 10) Priorities (to be Attained)
B42: A. | C42: All projects MUST provide housing for households ≤80% AMI. This section outlines AHC's priorities for this funding round. Projects that attain funding priorities will receive additional consideration.
A43: 11) Universal Design Budget
B44: A. | C44: If new construction, input costs to make the AHC-Assisted Units Universally Designed. Sign the UD certification on page 14 (Tab 1).
A45: 12) Living Wage Acknowledgement & Acceptance
B46: A. | C46: Complete this form. If the applicant is a non-profit agency that previously received AHC funding and there have been no changes to the agency's: 1) non-profit status, 2) Articles of Incorporation and 3) By-laws, please sign the No Change Affidavit.
A47: 13) Sustainability Impact Statement
B48: A. | C48: Indicate all activities in your project that advance the City's Sustainability Plan.
A49: 14) 1099

Sheet 1) Application
A1: RENTAL HOUSING PROGRAMS APPLICATION
A2: AFFORDABLE HOUSING COMMISSION
A4: I. | B4: General Information
A5: u | B5: Development Information
B6: Development Name:
B7: Street Address: | O7: Neighborhood:
B8: St. Louis, MO | G8: Zip: | N8: Ward: | Q8: Census Tract:
B10: Property ID#:
B18: Is property located on or north of Delmar Blvd?
B19: Is property in one of the Zip Codes below?
C20: 63101 | E20: 63102 | G20: 63103 | I20: 63106 | K20: 63107 | M20: 63108 | O20: 63112 | Q20: 63113 | S20: 63115 | U20: 63147
B23: Total Number of Units Planned | J23: =SUM(J24:K31) -> 0 | M23: Total Number of AHC-Assisted Units
B24: Number of Market Units | M24: AHC-Assisted ≤20% AMI Units
B25: Number of Units at 80% | M25: # LMI Units | U25: =J25+J26+J27+J28+J29+J30+J31 -> 0
B26: Number of Units at 70%
B27: Number of Units at 60% | M27: You Must Input # of Units in this Section
B28: Number of Units at 50%
B29: Number of Units at 40%
B30: Number of Units at 30%
B31: Number of Units at 20%
B32: Construction Type
B33: Housing Type
B34: Project Summary Briefly describe your project.
B63: Do you plan to seek real property tax abatement for this development?
C64: If yes, is development in a designated redevelopment area under:
B66: AHC Subsidy Request (information comes from the Sources & Uses tab, Worksheet 2)
O67: Per AHC-Assisted | S67: Subsidy Per 20%
J68: Total | M68: Per Unit | O68: Unit | S68: AMI-Assisted Unit
B69: Trust Fund Dollars Request | J69: ='4) Sources & Uses'!E25 -> 0
B70: Total Requested | J70: =SUM(J69) -> 0 | M70: =J70/J23 ->  | O70: =J70/U23 ->  | S70: =(J70/U23)*U24 -> 
A71: *AHC funding construction funding will transfer to permanent financing when the project is complete unless otherwise stated.
B72: Indicate preferred repayment terms:
B78: All AHC-assisted rental projects should provide affordable housing for 30 years unless otherwise requested.
B79: Will this project create and maintain AHC-assisted housing for 30 years?
B80: If this project plans to create and maintain AHC-assisted housing for a shorter restriction period, how long will units remain affordable?
B82: If the project intends to maintain affordable housing for LESS than 30 years, explain why:
B88: Developer Information
B89: Entity Name: | P89: Federal I.D. #:
B90: Contact Person: | P90: Phone:
B91: Address: | M91: Email:
B92: City: | L92: State: | P92: Zip:
B93: Legal Form:
B94: Is firm a certified Minority-owned Business Enterprise (MBE)?
B95: Is firm a certified Women-owned Business Enterprise (WBE)?
B97: General Partner/Corporate Officer Information (if applicable)
B98: (List Managing General Partner on first line.) | Q98: Ownership %
B99: Name: | K99: Fed. ID/Soc. Sec. #
B100: Name: | K100: Fed. ID/Soc. Sec. #
B101: Name: | K101: Fed. ID/Soc. Sec. #
B102: Is firm a certified Minority-owned Business Enterprise (MBE)?
B104: Is firm a certified Women-owned Business Enterprise (WBE)?
B106: Previous Development Experience
B107: How many full-time equivalent (FTE) employees at developer/CHDO?
B108: Has the developer completed other residential development projects?
C109: If yes, please answer the following:
C110: How many projects has the developer completed?
C111: How many dwelling units has the developer been responsible for producing?
F112: New Construction | J112: # | K112: units: | O112: Rehab | Q112: # units:
B113: List most recently completed projects:
B114: Project Name | F114: Address | K114: Construction Type | M114: Tenure Type | O114: Target Residents | R114: # Units | T114: Total Development. Costs
B119: Describe the experience of the specific staff members who will manage this project. Attach resumes.
B124: If developer has been involved in residential development projects in some other capacity, please specify:
A130: II. | B130: Development Plan Information
B131: Total number of rental units planned | N131: =J23 -> 0 | P131: units
B132: Number of AHC-Assisted Units planned | N132: =U23 -> 0 | P132: units
N133: (info below from Units & Revenue)
B134: Residential Floor Area planned | I134: fills from Units & Revenue | N134: ='6) Units & Revenue'!E43 -> 0 | P134: gross sq. ft. | S134: =IF(N134>=50000,"Required to Benchmark Energy on an Annual Basis","") -> 
B135: Total number of Buildings planned | P135: buildings
B136: Age of existing Building(s) | P136: years old
B137: Construction Type | G137: =G32 -> 0
B138: Housing Type | G138: =G33 -> 0 | N138: # of Stories:
B139: Structural System | I139: Basement | O139: Exterior
B140: Parking | L140: Number of parking spaces
B141: Will the project target special populations beyond Low/Mod Income?
C142: If yes, indicate which populations: | P142: &
A144: u | B144: New Construction - Must Adhere to National Green Building Standard
B146: All new construction projects must build to a national green building standard (LEED, Enterprise Green, NGBS, or EnergyStar with a RESNET energy auditor).
B148: This is a new construction project
B149: This project will be built to a national green standard
B150: If yes, indicate the national green building standard sought:
A152: u | B152: Energy Efficiency - Rehabilitation
B153: AHC gives priority consideration for comprehensive retrofits that will be designed and built to a national green building standard (see Funding Priorities). All other rehabilitation projects are encouraged to include the following sustainable features. Indicate which features will be included.
B156: Sealed combustion furnace (if gas) greater or equal to 92% AFUE, properly sized
B157: High efficiency furnace (if electric), properly sized
B158: Caulk and seal package
B159: Energy Star bath exhaust fan with a timer
B160: All newly installed appliances should be ENERGY STAR Certified
B161: 90% of lights should be LED
B162: Low VOC paint & flooring
B163: WaterSense certified plumbing fixtures
H166: Description | O166: Sustainability Certification in addition to
O167: EPA EnergyStar. Describe:
B168: Heating System:
B169: Air Conditioning System:
B170: Domestic Hot Water:
B171: Appliances:
A173: u | B173: Equipment included with Income Restricted Units
C174: Microwave | H174: Refrigerator | L174: Kitchen Exhaust Duct | R174: Other:
C175: Range & Oven | H175: Ceiling Fans | L175: Common On-site Laundry
C176: Garbage Disposal | H176: Fireplace | L176: Security Alarm
C177: Dishwasher | H177: Blinds/Drapes | L177: Laundry in unit
A179: III. | B179: Site Information
B180: Are any project buildings in a National or City historic district?
B181: Are any project buildings within 300 feet of a park?
B182: If YES have you discussed this project and plans with the Cultural Resources Office?
B183: Property acquired from Land Reutilization Authority?
B184: Form of Site Control: | K184: Price:
B185: Date of Acquisition: | J185: Expiration date of option/contract:
B187: Total Site Area (purchased in this transaction):
B188: Project Site Area (utilized for proposed development):
B190: Seller's Name:
B191: Mailing Address:
B192: City: | H192: State: | L192: Zip: | P192: Phone:
B193: Arms-Length Transaction?
B195: Explain the relationship between buyer and seller. Provide sales contract from last arms-length transaction.
B200: List properties (from above) which have an existing mortgage and state the amount of the outstanding loan.
B201: Address | R201: Mortgage Balance
B205: Does current site zoning allow the proposed residential use?
B206: If no, explain what steps have been or will be taken to obtain zoning approval.
B210: Will the current site(s) require lots to be subdivided?
B211: Are the following utilities now located on the site?
C212: Public Water Supply | P212: Feet from Site
C213: Public Sewer System | P213: Feet from Site
C214: Natural Gas Distribution System | P214: Feet from Site
C215: Electric Power System | P215: Feet from Site
C216: Cable Television System | P216: Feet from Site
C217: Telephone System | P217: Feet from Site
B218: Are the following conditions present at the proposed development site?
C219: All or part in 100-yr. floodplain | M219: Standing water
C220: Railroad tracks within 300 feet | M220: Creek, lake, river frontage
C221: High tension wires | M221: Ravines or steep grades
C222: High noise levels | M222: Industrial sites
C223: Hazardous waste sites | M223: Commercial sites
B224: Describe any other unusual site conditions:
B229: Describe neighborhood assets such as high performing schools, employment options, low poverty, as well as, the project's alignment with a neighborhood plan, if one exists, and other noteworthy developments that may have a positive impact on the marketability of the development.
B245: Existing Loan Subsidies in Developments to be Acquired
B246: Does your development plan include acquisition of units with existing subsidies?
B247: If yes, indicate the kind of existing subsidy.
B253: Does your development plan seek to preserve federally-assisted low-income housing which would otherwise convert to market rate use through mortgage prepayment, foreclosure or expiring subsidies?
A255: IV. | B255: Ongoing Management Experience, Structure & Capacity
B256: Who will perform property management?
B257: Name of management staff/company:
A258: u | B258: Contact Person: | P258: Phone:
B259: Address: | M259: Email:
B260: City: | L260: State: | P260: Zip:
C261: How many units is your staff or 3rd party mgt company currently managing?
C263: How many income-restricted units is your staff/mgt company currently managing?
B264: Describe staff/mgt company's experience managing income-restricted rental units.
B269: Describe how the roles of property management, asset management & ongoing compliance will be delegated.
B276: Rental & Operating Assistance Information
B277: Do you expect to receive or are you currently receiving any rental subsidies for this development?
B278: If you answered yes, check the types of subsidy expected:
B279: If you answered yes, describe the source and purpose of subsides:
B284: Number of units expected to receive assistance: | S284: units
B285: Number of years in assistance contract: | S285: years
A286: V. | B286: Supportive Services Information
B287: Entity to perform services
B288: Contact Person: | P288: Phone:
B289: Address: | M289: Email:
B290: City: | L290: State: | P290: Zip:
B291: Is the provider experienced providing affordable housing services?
A292: List locations/projects where provider currently provides services:
A293: Project Name | E293: Address | J293: Services | O293: Phone | R293: Email contact person
B298: Supportive Services
C299: Case management | M299: Other Supportive Services:
C300: Healthcare resources
C301: Food
C302: Housing counseling
C303: Job training & placement
B304: (Attach copies of letter of intent from service providers.)
B305: If you plan to provide supportive services to your tenants, please provide the following:
A306: u | B306: Description of the population to be served:
B312: Description of the services to be provided:
B317: Description of the intended benefits of the services to be provided:
A323: VI. | B323: Development Schedule
B324: In the chart below, enter the month and year that the item was accomplished, or for future events, the month and year when that item is expected to be accomplished. If an item does not apply to your development, enter N/A or leave blank.
O326: Month | R326: Year
C327: Site | I327: Option
I328: Contract
I329: Closing
I330: Zoning
I331: Site Analysis
C332: Construction Financing | I332: Application Submission
I333: Conditional Commitment
I334: Firm Commitment
I335: Closing
C336: Plans | I336: Preliminary Drawings
I337: Working Drawings
C338: Construction Loan Closing
C339: Construction Start
C340: Marketing Start-Up
C341: Construction Complete
C342: Unit(s) Fully Leased
N343: Total Construction Schedule: | R343: months
H344: Number of months after January 2025 | R344: months
A345: VII. | B345: Development Team Information | T345: Certified
E346: Name | J346: Address | Q346: Phone | T346: MBE | U346: WBE
B347: Contractor:
B348: Consultant:
B349: Attorney:
... 131 more rows

Sheet 2) Development Budget
A1: Affordable Housing Commission Rental Production Application/Proforma
A2: DEVELOPMENT BUDGET
B3: Project: | C3: =project -> 0 | G3: Developer: | H3: =dev -> 0 | L3: Square Feet | N3: ='3) Construction Costs'!M2 -> 0 | P3: Total Units: | Q3: ='1) Application'!J23 -> 0
A4: AHC Request: | D4: ='1) Application'!J70 -> 0 | G4: Address: | H4: ='1) Application'!F7 -> 0 | L4: Construction | N4: ='1) Application'!G32 -> 0 | P4: AHC Units: | Q4: ='1) Application'!U23 -> 0
A5: Construction: | D5: ='1) Application'!G32 -> 0 | G5: Housing Type: | H5: ='1) Application'!G33 -> 0 | N5: ≤20% AMI Units: | Q5: ='1) Application'!U24 -> 0
P6: LMI Units: | Q6: ='1) Application'!U25 -> 0
B8: DEVELOPMENT COSTS | I8: Total
B9: Total Construction Cost | I9: ='3) Construction Costs'!K73 -> 0 | L9: From Construction Cost, Tab 3
B11: PREDEVELOPMENT COST | I11: TOTAL | L11: Per Unit | N11: Per SF | P11: % TDC
B12: Architect & Engineering Fee-Design | L12: =I12/$Q$3 -> 
B13: Architect Fee - Supervision
B14: Soils Report
B15: Survey
B16: Engineering
B17: Total Predevelopment: | I17: =SUM(I12:J16) -> 0 | N17: =I17/SqFt ->  | P17: =I17/$I$112 -> 
I18: =I9+I17 -> 0
B19: CONSTRUCTION COSTS | G19: fills from Construction Costs Tab 3
B20: General Cond., Overhead & Profit | I20: ='3) Construction Costs'!K66+'3) Construction Costs'!K70+'3) Construction Costs'!K71 -> 0 | L20: =I20/$Q$3 -> 
B21: Construction Contingency | I21: ='3) Construction Costs'!K72 -> 0 | L21: =I21/$Q$3 -> 
B22: Construction Hard Costs | I22: ='3) Construction Costs'!K73-'2) Development Budget'!I20-'2) Development Budget'!I21 -> 0 | L22: =I22/$Q$3 -> 
B23: Total Construction | I23: =SUM(I20:I22) -> 0 | L23: =I23/$Q$3 ->  | N23: =I23/SqFt ->  | P23: =I23/$I$112 -> 
B25: CARRYING AND CONSTRUCTION FINANCING COSTS
B26: Construction Loan Interest | L26: =I26/$Q$3 -> 
B27: Construction Period R.E.Taxes
B28: Construction Period Insurance
B29: MHDC Rental Production Application Fee
B30: MHDC Construction Loan Fee
B31: Other Construction Loan Fee
B32: MHDC Construction Inspection Fee
B33: Other Construction Inspection Fee
B34: MHDC Permanent Financing Fee
B35: Other Permanent Financing Fee
B36: Environmental Study
B37: Market Study
B38: Appraisal
B39: Title Recording & Disbursing (Construction Loan)
B40: Total Carrying/Finance: | I40: =SUM(I26:J39) -> 0 | N40: =I40/SqFt ->  | P40: =I40/$I$112 -> 
B42: PERMANENT FINANCING
B43: Title Recording & Disbursing (Permanent Loan) | L43: =I43/$Q$3 -> 
B44: Legal (Construction)
B45: Legal (Permanent)
B46: Organization (Legal/Fees)
B47: Cost Certification
B48: Accountant's Fee
B49: Prepaid MIP (Risk Share only)
B50: Environmental Abatement
B51: Historic Credit Fees
B52: Other:
B53: Total Permanent Financing | I53: =SUM(I43:J52) -> 0 | N53: =I53/SqFt ->  | P53: =I53/$I$112 -> 
A55: Affordable Housing Commission Rental Production Application/Proforma, Page 2
A56: DEVELOPMENT BUDGET
B57: Project: | C57: =project -> 0 | G57: Developer: | H57: =dev -> 0 | L57: Square Feet | N57: =SqFt -> 0 | P57: Total Units: | Q57: ='1) Application'!J23 -> 0
G58: Address: | H58: ='1) Application'!F7 -> 0 | L58: Construction | N58: ='1) Application'!G32 -> 0 | P58: AHC Units: | Q58: ='1) Application'!U23 -> 0
P59: 20% AMI Units: | Q59: ='1) Application'!U24 -> 0
P60: LMI Units: | Q60: ='1) Application'!U25 -> 0
B61: PROFESSIONAL SERVICES | I61: TOTAL | L61: Per Unit | N61: Per SF | P61: % TDC
B62: Relocation | L62: =I62/$Q$57 -> 
B63: FF & E | L63: =I63/$Q$57 -> 
B64: Other:(Describe) | D64: Security Systems
B65: Other:(Describe) | D65: Historic Consult
B66: Other:(Describe) | D66: Resnet/HRS
B67: Other:(Describe) | D67: Investor Legal
B68: Other:(Describe) | D68: MHDC Cost Analysis
B69: Total Professional Services | I69: =SUM(I62:J68) -> 0 | N69: =I69/SqFt ->  | P69: =I69/$I$112 -> 
B71: Replacement Cost w/o Acquisition | I71: =I69+I53+I40+I18 -> 0 | L71: =I71/Q57 -> 
B73: BUILDING AND PROPERTY ACQUISITION
B74: Legal (Acquisition & Recording) | L74: =I74/$Q$57 -> 
B75: Acquisition-Cost of Buildings | L75: =I75/$Q$57 -> 
B76: Other Acquisition Related Costs | L76: =I76/$Q$57 -> 
B77: Acquisition-Cost of Land | L77: =I77/$Q$57 -> 
B78: Acquisition Cost | I78: =SUM(I74:J77) -> 0 | L78: =I78/$Q$57 ->  | N78: =I78/SqFt ->  | P78: =I78/$I$112 -> 
B80: Total Replacement Cost (lines 53-57) | I80: =SUM(I71:J77) -> 0 | L80: =I80/Q57 ->  | N80: =I80/SqFt ->  | P80: =I80/$I$112 -> 
B82: FEES/MISC
B83: Developer's Fee (Before Completion) | L83: =I83/$Q$57 ->  | N83: =I83/SqFt ->  | P83: =I83/$I$112 -> 
B84: Developer's Fee (At/After Completion) | L84: =I84/$Q$57 ->  | N84: =I84/SqFt ->  | P84: =I84/$I$112 -> 
B85: Total Developer Fee | I85: =SUM(I83:J84) -> 0 | L85: =I85/$Q$57 ->  | N85: =I85/N3 ->  | P85: =I85/I112 -> 
B87: OTHER FEES/BONDS/MISC
B88: Consultant's Fee (Before Completion) | L88: =I88/$Q$57 -> 
B89: Consultant's Fee (At/After Completion) | L89: =I89/$Q$57 -> 
B90: Tax Credit Allocation Fee (7%)
B91: Tax Credit Monitoring Fee
B92: AHAP Application & Reservation Fee
B93: Bond Related Costs
B94: Syndication Costs
B95: Lease-up/Marketing
B96: Other:(Describe)
B97: Other:(Describe)
B98: Other:(Describe)
B99: Other:(Describe)
B100: Total Fees/Misc | I100: =SUM(I88:J99) -> 0 | N100: =I100/SqFt ->  | P100: =I100/$I$112 -> 
B102: RESERVES
B103: Operating Reserve (cash escrow) | L103: =I103/$Q$57 -> 
B104: Replacement Reserve (cash escrow) | L104: =I104/$Q$57 -> 
B105: Other Escrow(s):
B106: Other Escrow(s):
B107: Other Escrow(s):
B108: Other Escrow(s):
B109: Other Escrow(s):
B110: Total Reserves | I110: =SUM(I103:J109) -> 0 | N110: =I110/SqFt ->  | P110: =I110/$I$112 -> 
B112: Total Development Costs | I112: =I110+I100+I85+I80 -> 0 | L112: =I112/Q3 ->  | N112: =I112/SqFt ->  | P112: =I112/$I$112 -> 

Sheet 3) Construction Costs
A1: CONTRACTOR'S/MORTGAGOR'S COST BREAKDOWN
K2: Square Feet: | M2: ='6) Units & Revenue'!E43 -> 0 | Q2: Units: | S2: ='1) Application'!J23 -> 0
K3: Construction: | M3: ='1) Application'!G32 -> 0 | Q3: AHC Units: | S3: ='1) Application'!U23 -> 0
A4: Project: | C4: =project -> 0 | Q4: 20% AMI Units: | S4: ='1) Application'!U24 -> 0
A5: Developer: | D5: =dev -> 0 | Q5: LMI Units: | S5: ='1) Application'!U25 -> 0
A6: AHC Request: | D6: ='1) Application'!J70 -> 0
A7: Address: | D7: ='1) Application'!F7 -> 0 | K7: Costs are based on prevailing wage rates:
Q9: Date of Plans used for estimate:
K11: Total | Q11: Per | S11: Per | U11: %
B12: Item Description of Work | K12: Scheduled Value | Q12: Unit | S12: SF | U12: Construction
A14: Site Work
A15: 1 | B15: Earthwork | Q15: =K15/$S$2 ->  | S15: =K15/$M$2 ->  | U15: =K15/$K$73 -> 
A16: 2 | B16: Site Utilities | K16: 0 | Q16: =K16/$S$2 ->  | S16: =K16/$M$2 ->  | U16: =K16/$K$73 -> 
A17: 3 | B17: Roads & Walks | U17: =K17/$K$73 -> 
A18: 4 | B18: Off Site Work | K18: 0 | U18: =K18/$K$73 -> 
A19: Subtotal Sitework | K19: =SUM(K15:N18) -> 0 | Q19: =SUM(Q15:Q18) ->  | S19: =SUM(S15:S18) ->  | U19: =SUM(U15:V18) -> 
A21: New Building/Rehabilitation
A22: 5 | B22: Concrete | K22: 0 | U22: =K22/$K$73 -> 
A23: 6 | B23: Masonry
A24: 7 | B24: Structural Metals
A25: 8 | B25: Rough Carpentry
A26: 9 | B26: Finish Carpentry
A27: 10 | B27: Cabinets
A28: 11 | B28: Waterproofing
A29: 12 | B29: Insulation
A30: 13 | B30: Roofing Systems
A31: 14 | B31: Siding
A32: 15 | B32: Gutters & Downspouts | K32: 0
A33: 16 | B33: Doors & Hardware
A34: 17 | B34: Windows
A35: 18 | B35: Drywall
A36: 19 | B36: Flooring
A37: 20 | B37: Carpet | K37: 0
A38: 21 | B38: Painting
A39: 22 | B39: Signage
A40: 23 | B40: Bathroom & Closet Accessories
A41: 24 | B41: Appliances
A42: 25 | B42: Window Coverings
A43: 26 | B43: Plumbing
A44: 27 | B44: Fire Sprinklers | K44: 0
A45: 28 | B45: HVAC
A46: 29 | B46: Electrical
A47: 30 | B47: Fire Alarm Systems | K47: 0
A48: 31 | B48: Special Equipment | K48: 0
A49: 32 | B49: Landscaping
A50: Subtotal Structure | K50: =SUM(K22:N49) -> 0 | Q50: =SUM(Q22:Q49) ->  | S50: =SUM(S22:S49) ->  | U50: =SUM(U22:V49) -> 
A52: Demolition/Other
A53: 33 | B53: MHDC Approved Impact Fees | K53: 0 | U53: =K53/$K$73 -> 
A54: 34 | B54: Accessory Bldg | K54: 0
A55: 35 | B55: Demolition (interior rehab)
A56: 36 | B56: Demolition (land make-ready) | K56: 0
A57: 37 | B57: Sheet Metal
A58: 38 | B58: Bonding
A59: 39 | B59: Building Permits
A60: 40 | B60: Other | K60: 0
A61: 41 | B61: Other | K61: 0
A62: 42 | B62: Other | K62: 0
A63: Demolition Subtotal | K63: =SUM(K53:N62) -> 0
A64: Construction Subtotal | K64: =K63+K50+K19 -> 0
A66: General Requirements (Attach separate | O66: =K66/K64 ->  | U66: =K66/$K$73 -> 
B67: page detailing costs)
A68: Subtotal | K68: =SUM(K64:N66) -> 0 | U68: =K68/$K$73 -> 
A70: Builder's Overhead | O70: =K70/K64 ->  | U70: =K70/$K$73 -> 
A71: Builder's Profit | O71: =K71/K64 ->  | U71: =K71/$K$73 -> 
A72: Construction Contingency | Q72: =K72/S2 ->  | S72: =K72/M2 ->  | U72: =K72/K73 -> 
A73: TOTAL CONSTRUCTION | K73: =SUM(K68:N72) -> 0 | U73: =K73/$K$73 -> 
A75: General Requirements | K75: % Construction | P75: Limits
A76: General Requirement | K76: =K66/K73 ->  | P76: 0.06
A77: Builder's Overhead | K77: =K70/K73 ->  | P77: 0.02
A78: Builders Profit | K78: =K71/K73 ->  | P78: 0.08
A81: CONTRACTOR'S/MORTGAGOR'S COST BREAKDOWN
A82: SUPPLEMENTAL SHEET FOR GENERAL REQUIREMENTS
K84: Square Feet: | M84: ='4) Sources & Uses'!F5 -> 0 | Q84: Units: | S84: =S2 -> 0
A85: Project | C85: =project -> 0 | K85: Construction: | M85: ='1) Application'!G137 -> 0 | Q85: AHC Units: | S85: =S3 -> 0
A86: Developer | D86: =dev -> 0 | Q86: 20% AMI Units: | S86: ='1) Application'!U24 -> 0
A87: Address | D87: ='1) Application'!F7 -> 0
Q88: LMI Units: | S88: ='1) Application'!U25 -> 0
B89: Item Description of Work | K89: Scheduled Value
A91: 1 | B91: Supervision | K91: 0
A92: 2 | B92: Field Engineering | K92: 0
A93: 3 | B93: Field Office Expense | K93: 0
A94: 4 | B94: Building Permits | K94: 0
A95: 5 | B95: Temporary Facilities | K95: 0
A96: 6 | B96: Temporary Utilities | K96: 0
A97: 7 | B97: Cleaning/Rubbish Removal | K97: 0
A98: 8 | B98: Watchman Wages | K98: 0
A99: 9 | B99: Builder's Risk Insurance | K99: 0
A100: 10 | B100: Testing | K100: 0
A101: 11 | B101: Bond Premium | K101: 0
A102: 12 | B102: Contractor's Cost Certification | K102: 0
A103: 13 | B103: Other Fees: | K103: 0
A104: 14 | B104: Other Fees: | K104: 0
A105: 15 | B105: Other Fees: | K105: 0
A107: GENERAL REQUIREMENTS SUBTOTAL | K107: =SUM(K91:M106) -> 0

Sheet 4) Sources & Uses
B1: Affordable Housing Commission Rental Production Application/Proforma
B2: Sources & Uses Summary
B4: Project Name | C4: =project -> 0 | E4: Unit Type | F4: ='1) Application'!G138 -> 0 | H4: Total Units: | I4: ='1) Application'!J23 -> 0
B5: Developer | C5: =dev -> 0 | E5: Total Square Feet: | F5: =SqFt -> 0 | H5: AHC Units: | I5: ='1) Application'!U23 -> 0
B6: Project Type: | C6: ='1) Application'!G137 -> 0 | E6: Avg SqFt/Unit: | F6: =F5/I4 ->  | H6: 20% AMI Units: | I6: ='1) Application'!U24 -> 0
B7: AHC Request: | C7: ='1) Application'!J70 -> 0 | E7: Target Population: | F7: ='1) Application'!K142 -> 0 | H7: LMI Units: | I7: ='1) Application'!U25 -> 0
E8: Average Rent | F8: ='6) Units & Revenue'!S31 -> 
B10: Development Costs | E10: Total | F10: Per Unit | G10: % of Total
B11: Total Predevelopment | E11: ='2) Development Budget'!I17 -> 0 | F11: =E11/$I$4 ->  | G11: =E11/$E$21 -> 
B12: Total Acquisition | E12: ='2) Development Budget'!I78 -> 0 | F12: =E12/$I$4 -> 
B13: Total Construction | E13: ='2) Development Budget'!I23 -> 0 | H13: Construction Cost/SqFt: | J13: =E13/F5 -> 
B14: Total Professional Services | E14: ='2) Development Budget'!I69 -> 0 | H14: Total Cost/SqFt: | J14: =E21/F5 -> 
B15: Total Carrying & Construction Financing | E15: ='2) Development Budget'!I40 -> 0
B16: Total Permanent Financing | E16: ='2) Development Budget'!I53 -> 0
B17: Total Reserves | E17: ='2) Development Budget'!I110 -> 0
B18: Total Fees/Misc (not Developer Fee) | E18: ='2) Development Budget'!I100 -> 0
B19: Developer Fee before completion | E19: ='2) Development Budget'!I83 -> 0
B20: Developer Fee after completion | E20: ='2) Development Budget'!I84 -> 0
B21: Total Development Costs | E21: =SUM(E11:E20) -> 0
B23: Permanent Sources | D23: Source: | E23: Total | F23: Per Unit | G23: % of Total | H23: Interest Rate | I23: Loan Term | J23: Annual Payment
B24: Bank Mortgage | C24: Est. mortgage: | D24: ='7) Operating Budget'!I45 -> 0 | F24: =E24/$I$4 ->  | G24: =E24/'2) Development Budget'!$I$112 -> 
B25: AHC Permanent Loan requested* | F25: =E25/$I$4 ->  | G25: =E25/'2) Development Budget'!$I$112 -> 
B26: Estimated MO State Historic Tax Credits | G26: =E26/'2) Development Budget'!$I$112 -> 
B27: Estimated Federal Historic Tax Credits | G27: =E27/'2) Development Budget'!$I$112 -> 
B28: Developer Equity | G28: =E28/'2) Development Budget'!$I$112 -> 
B29: Source 1: CDA | G29: =E29/'2) Development Budget'!$I$112 -> 
B30: Source 2: | G30: =E30/'2) Development Budget'!$I$112 -> 
B31: Source 3: | G31: =E31/'2) Development Budget'!$I$112 -> 
B32: Source 4: | G32: =E32/'2) Development Budget'!$I$112 -> 
B33: Source 5: | G33: =E33/'2) Development Budget'!$I$112 -> 
B34: Total Sources | E34: =SUM(E24:E33) -> 0 | G34: =E34/'2) Development Budget'!I112 ->  | J34: =SUM(J24:J33) -> 0
B36: (GAP) or Surplus | E36: =E34-E21 -> 0 | G36: =(E36/'2) Development Budget'!I112) ->  | I36: =IF('7) Operating Budget'!I37/J34<'7) Operating Budget'!I41,"Debt Payments Exceed Amount Allowed by DCR!", "") -> 
B37: =IF(E34=E21,"","Sources & Uses Do Not Match") -> 
B38: Construction Financing Sources (May include permanent sources listed above.) | F38: Amount Available During Construction | G38: % TDC | H38: Const. Loan Interest Rate | I38: Developer Notes
B39: Private Construction Loan (bank financing) | G39: =F39/'2) Development Budget'!$I$112 -> 
B40: Developer Equity (Self-financing for acquisition, predevelopment, etc.) | G40: =F40/'2) Development Budget'!$I$112 -> 
B41: Deferred Developer Fee | G41: =F41/'2) Development Budget'!$I$112 -> 
B42: Other: CDA | G42: =F42/'2) Development Budget'!$I$112 -> 
B43: Other Source 2: | G43: =F43/'2) Development Budget'!$I$112 -> 
B44: Other Source 3: | G44: =F44/'2) Development Budget'!$I$112 -> 
B45: AHC Construction Loan requested* | G45: =F45/'2) Development Budget'!$I$112 -> 
B46: Costs not incurred during construction (reserves, dev. fee) | F46: ='2) Development Budget'!I85+'2) Development Budget'!I110-'2) Development Budget'!I83 -> 0 | G46: =F46/'2) Development Budget'!$I$112 -> 
B47: Total Construction Sources | F47: =SUM(F39:F46) -> 0 | G47: =F47/'2) Development Budget'!$I$112 -> 
B48: Construction Financing Surplus/(Gap)? | F48: =F47-'2) Development Budget'!I112 -> 0 | G48: =F48/'2) Development Budget'!I112 -> 
B50: *AHC construction funding will transfer to permanent financing when the project is complete unless otherwise stated.
B52: Unit Mix | C52: Efficiency | D52: 1 BR | E52: 2 BR | F52: 3 BR | G52: 4 BR | H52: Total
B53: 20% AMI | C53: ='6) Units & Revenue'!C7 -> 0 | D53: ='6) Units & Revenue'!C18 -> 0 | E53: ='6) Units & Revenue'!C29 -> 0 | F53: ='6) Units & Revenue'!N7 -> 0 | G53: ='6) Units & Revenue'!N18 -> 0 | H53: =SUM(C53:G53) -> 0
B54: 30% AMI | C54: =+'6) Units & Revenue'!C8 -> 0 | D54: =+'6) Units & Revenue'!C19 -> 0 | E54: =+'6) Units & Revenue'!C30 -> 0 | F54: =+'6) Units & Revenue'!N8 -> 0 | G54: =+'6) Units & Revenue'!N19 -> 0 | H54: 0
B55: 40% AMI | C55: ='6) Units & Revenue'!C9 -> 0 | D55: ='6) Units & Revenue'!C20 -> 0 | E55: ='6) Units & Revenue'!C31 -> 0 | F55: ='6) Units & Revenue'!N9 -> 0 | G55: ='6) Units & Revenue'!N20 -> 0 | H55: 0
B56: 50% AMI | C56: ='6) Units & Revenue'!C10 -> 0 | D56: ='6) Units & Revenue'!C21 -> 0 | E56: ='6) Units & Revenue'!C32 -> 0 | F56: ='6) Units & Revenue'!N10 -> 0 | G56: ='6) Units & Revenue'!N21 -> 0 | H56: 0
B57: 60% AMI | C57: ='6) Units & Revenue'!C11 -> 0 | D57: ='6) Units & Revenue'!C22 -> 0 | E57: ='6) Units & Revenue'!C33 -> 0 | F57: ='6) Units & Revenue'!N11 -> 0 | G57: ='6) Units & Revenue'!N22 -> 0 | H57: 0
B58: 70% AMI | C58: =+'6) Units & Revenue'!C12 -> 0 | D58: =+'6) Units & Revenue'!C23 -> 0 | E58: =+'6) Units & Revenue'!C34 -> 0 | F58: =+'6) Units & Revenue'!N12 -> 0 | G58: =+'6) Units & Revenue'!N23 -> 0 | H58: 0
B59: 80% AMI | C59: =+'6) Units & Revenue'!C13 -> 0 | D59: =+'6) Units & Revenue'!C24 -> 0 | E59: =+'6) Units & Revenue'!C35 -> 0 | F59: =+'6) Units & Revenue'!N13 -> 0 | G59: =+'6) Units & Revenue'!N24 -> 0 | H59: 0
B60: Market Rate | C60: ='6) Units & Revenue'!C14 -> 0 | D60: ='6) Units & Revenue'!C25 -> 0 | E60: ='6) Units & Revenue'!C36 -> 0 | F60: ='6) Units & Revenue'!N14 -> 0 | G60: ='6) Units & Revenue'!N25 -> 0 | H60: 0
B61: Total | C61: =SUM(C53:C60) -> 0 | D61: 0 | E61: 0 | F61: 0 | G61: 0 | H61: 0
B63: Operating Budget | D63: Annual | E63: Per Unit | F63: Assumptions
B64: Gross Rent Potential | D64: ='6) Units & Revenue'!T29 -> 0 | E64: =D64/$I$4 ->  | F64: Vacancy Rate: | H64: ='7) Operating Budget'!C14 -> 0.07
B65: Other Income | D65: ='6) Units & Revenue'!T41 -> 0 | E65: =D65/$I$4 ->  | F65: Inflation | H65: 1-2%
B66: Vacancy | D66: ='7) Operating Budget'!D14 -> 0 | F66: Administrative Inflation | H66: 0.03
B67: Adjusted Gross Income | D67: ='7) Operating Budget'!D15 -> 0
B68: Operating Expenses | D68: ='7) Operating Budget'!I33 -> 0
B69: Net Operating Income | D69: ='7) Operating Budget'!I37 -> 0
B70: Debt Service | D70: =J34 -> 0
D71: You Must Include Source & Status of All Funds Sought
B73: Status of | H73: Date Secured
B74: Permanent Financing | D74: Name of Institution | F74: Secured/Not Secured | H74: or Awarded
B75: =B24 -> Bank Mortgage
B76: State Historic Tax Credits
B77: Federal Historic Tax Credits
B78: =B29 -> Source 1: CDA
B79: =B30 -> Source 2:
B80: =B31 -> Source 3:
B81: =B32 -> Source 4:
B82: =B33 -> Source 5:
B83: =B28 -> Developer Equity
B86: Developer Notes | H86: Date Entered

Sheet 5) Utilities
B1: ='4) Sources & Uses'!B1:H1 -> Affordable Housing Commission Rental Production Application/Proforma
B2: Utilities
B3: Project: | C3: =project -> 0 | E3: Developer: | F3: =dev -> 0 | H3: Total Units: | I3: ='1) Application'!J23 -> 0
E4: Address: | F4: ='1) Application'!F7:N7 -> 0 | H4: AHC Units: | I4: ='1) Application'!U23 -> 0
H5: 20% AMI Units: | I5: ='1) Application'!U24 -> 0
H6: LMI Units: | I6: ='1) Application'!U25 -> 0
B8: Utility Allowance Calculation: use Utility Allowance tables at www.slha.org/for-partners/owners/forms/
B9: Utility | C9: Type of Utility | D9: Utilities Paid By: | E9: Allowance for Utilities Paid by Tenant Only
C10: (gas, oil, etc.) | E10: 0 BR | F10: 1 BR | G10: 2 BR | H10: 3 BR | I10: 4 BR
B11: Cooking
B12: Other, Lighting | C12: Electric
B13: Hot Water
B14: Water
B15: Heating
B16: Cooling
B17: Sewer
B18: Trash Collection
B19: TOTAL | E19: =SUM(E11:E18) -> 0 | F19: =SUM(F11:F18) -> 0 | G19: =SUM(G11:G18) -> 0 | H19: =SUM(H11:H18) -> 0 | I19: =SUM(I11:I18) -> 0

Sheet 6) Units & Revenue
B1: ='4) Sources & Uses'!B1:H1 -> Affordable Housing Commission Rental Production Application/Proforma
B2: Unit Information & Gross Revenue Potential
B3: Project: | E3: =project -> 0 | J3: Developer: | M3: =dev -> 0 | O3: Total Units: | P3: ='1) Application'!#REF! ->  | Q3: ='1) Application'!J23 -> 0 | S3: 20% AMI Units: | T3: ='1) Application'!U24 -> 0
C4: Address: | E4: ='1) Application'!F7 -> 0 | J4: AHC Request: | M4: ='1) Application'!J70 -> 0 | P4: AHC Units: | Q4: ='1) Application'!U23 -> 0 | S4: LMI Units: | T4: ='1) Application'!U25 -> 0
B5: Efficiency Units | K5: Construction: | M5: ='1) Application'!G32 -> 0 | O5: Housing Type: | Q5: ='1) Application'!G33 -> 0
C6: # of Units | D6: % AMI Targeted | E6: Baths | F6: Sq. Ft. | G6: Rent | H6: Monthly Rent | I6: Annual Rent | J6: # AHC Units | K6: Sq.Ft. | M6: 3 BR Units | N6: # of Units | O6: % AMI Targeted | P6: Baths | Q6: Sq. Ft. | R6: Rent | S6: Monthly Rent | T6: Annual Rent | U6: # AHC Units | V6: Sq.Ft.
D7: 0.2 | H7: =C7*G7 -> 0 | I7: =H7*12 -> 0 | K7: =F7*C7 -> 0 | O7: 0.2 | S7: =N7*R7 -> 0 | T7: =S7*12 -> 0 | V7: =Q7*N7 -> 0
D8: 0.3 | H8: 0 | I8: 0 | K8: =F8*C8 -> 0 | O8: 0.3 | S8: =N8*R8 -> 0 | T8: 0 | V8: =Q8*N8 -> 0
D9: 0.4 | H9: 0 | I9: 0 | K9: 0 | O9: 0.4 | S9: 0 | T9: 0 | V9: 0
D10: 0.5 | H10: 0 | I10: 0 | K10: 0 | O10: 0.5 | S10: 0 | T10: 0 | V10: 0
D11: 0.6 | H11: 0 | I11: 0 | K11: 0 | O11: 0.6 | S11: 0 | T11: 0 | V11: 0
D12: 0.7 | H12: 0 | I12: 0 | K12: 0 | O12: 0.7 | S12: 0 | T12: 0 | V12: 0
D13: 0.8 | H13: 0 | I13: 0 | K13: 0 | O13: 0.8 | S13: 0 | T13: 0 | V13: 0
D14: Market Rate | H14: 0 | I14: 0 | K14: 0 | O14: Market Rate | S14: 0 | T14: 0 | V14: 0
B15: Subtotal | C15: =SUM(C7:C14) -> 0 | H15: =SUM(H7:H14) -> 0 | I15: =SUM(I7:I14) -> 0 | J15: =+J7+J8+J9+J10+J11+J12+J13+J14 -> 0 | K15: =SUM(K7:K14) -> 0 | M15: Subtotal | N15: =SUM(N7:N14) -> 0 | S15: =SUM(S7:S14) -> 0 | T15: =SUM(T7:T14) -> 0 | U15: =+U7+U8+U9+U10+U11+U12+U13+U14 -> 0 | V15: =SUM(V7:V14) -> 0
B17: 1 BR Units | C17: # of Units | D17: % AMI Targeted | E17: Baths | F17: Sq. Ft. | G17: Rent | H17: Monthly Rent | I17: Annual Rent | J17: # AHC Units | K17: Sq.Ft. | M17: 4 BR Units | N17: # of Units | O17: % AMI Targeted | P17: Baths | Q17: Sq. Ft. | R17: Rent | S17: Monthly Rent | T17: Annual Rent | U17: # AHC Units | V17: Sq.Ft.
D18: 0.2 | H18: =C18*G18 -> 0 | I18: =H18*12 -> 0 | K18: =F18*C18 -> 0 | O18: 0.2 | S18: =N18*R18 -> 0 | T18: =S18*12 -> 0 | V18: =Q18*N18 -> 0
D19: 0.3 | H19: 0 | I19: 0 | K19: 0 | O19: 0.3 | S19: =N19*R19 -> 0 | T19: 0 | V19: =Q19*N19 -> 0
D20: 0.4 | H20: 0 | I20: 0 | K20: 0 | O20: 0.4 | S20: 0 | T20: 0 | V20: 0
D21: 0.5 | H21: 0 | I21: 0 | K21: 0 | O21: 0.5 | S21: 0 | T21: 0 | V21: 0
D22: 0.6 | H22: 0 | I22: 0 | K22: 0 | O22: 0.6 | S22: 0 | T22: 0 | V22: 0
D23: 0.7 | H23: 0 | I23: 0 | K23: 0 | O23: 0.7 | S23: 0 | T23: 0 | V23: 0
D24: 0.8 | H24: 0 | I24: 0 | K24: 0 | O24: 0.8 | S24: 0 | T24: 0 | V24: 0
D25: Market Rate | H25: 0 | I25: 0 | K25: 0 | O25: Market Rate | S25: 0 | T25: 0 | V25: 0
B26: Subtotal | C26: =SUM(C18:C25) -> 0 | H26: =SUM(H18:H25) -> 0 | I26: =SUM(I18:I25) -> 0 | J26: =+J18+J19+J20+J21+J22+J23+J24+J25 -> 0 | K26: =SUM(K18:K25) -> 0 | M26: Subtotal | N26: =SUM(N18:N25) -> 0 | S26: =SUM(S18:S25) -> 0 | T26: =SUM(T18:T25) -> 0 | U26: =+U18+U19+U20+U21+U22+U23+U24+U25 -> 0 | V26: =SUM(V18:V25) -> 0
B28: 2 BR Units | C28: # of Units | D28: % AMI Targeted | E28: Baths | F28: Sq. Ft. | G28: Rent | H28: Monthly Rent | I28: Annual Rent | J28: # AHC Units | K28: Sq.Ft. | S28: Monthly Rent | T28: Annual Rent
D29: 0.2 | H29: =C29*G29 -> 0 | I29: =H29*12 -> 0 | K29: =F29*C29 -> 0 | M29: Total Units | O29: =N26+N15+C37+C26+C15 -> 0 | R29: Gross Rent Potential | S29: =S26+S15+H37+H26+H15 -> 0 | T29: =T26+T15+I37+I26+I15 -> 0
D30: 0.3 | H30: =C30*G30 -> 0 | I30: 0 | K30: =F30*C30 -> 0 | M30: Total AHC Units | O30: =+J15+J26+J37+U15+U26 -> 0
D31: 0.4 | H31: 0 | I31: 0 | K31: =F31*C31 -> 0 | M31: # 20% AMI Units | O31: =+N18+N7+C29+C18+C7 -> 0 | R31: Per Unit Avg | S31: =S29/O29 ->  | T31: =T29/O29 -> 
D32: 0.5 | H32: 0 | I32: 0 | K32: 0 | M32: # AHC 20% AMI Units | O32: =+J7+J18+J29+U7+U18 -> 0
D33: 0.6 | H33: 0 | I33: 0 | K33: 0 | M33: Other Income | S33: Monthly | T33: Annually
D34: 0.7 | H34: 0 | I34: 0 | K34: 0
D35: 0.8 | H35: 0 | I35: 0 | K35: 0 | M35: Miscellaneous & Interest | T35: =S35*12 -> 0
D36: Market Rate | H36: 0 | I36: 0 | K36: 0 | M36: Laundry | T36: 0
B37: Subtotal | C37: =SUM(C29:C36) -> 0 | H37: =SUM(H29:H36) -> 0 | I37: =SUM(I29:I36) -> 0 | J37: =+J29+J30+J31+J32+J33+J34+J35+J36 -> 0 | K37: =SUM(K29:K36) -> 0 | M37: Carports/Garages | T37: 0
M38: Tenant Charges (late fees, insufficient funds, etc) | T38: 0
B39: Square Footage Breakdown | M39: Operating Subsidy: | O39: (source) | T39: 0
B40: Residential Square Footage | E40: =K15+K26+K37+V15+V26 -> 0 | F40: =UnitsSqFt/SqFt ->  | M40: Other: | T40: 0
B41: Common Areas Sq. Ft. | F41: =E41/SqFt ->  | M41: Totals | S41: =SUM(S35:S40) -> 0 | T41: =SUM(T35:T40) -> 0
B42: Commercial Sq. Ft. | F42: =E42/SqFt -> 
B43: Total Square Footage | E43: =SUM(E40:E42) -> 0 | F43: =E43/SqFt ->  | P43: Gross Annual Income Potential | T43: =T29+T41 -> 0
H46: Accessibility Review | Q46: Special Populations Review
G47: Total Units: | J47: =O29 -> 0 | M47: # Units - Elderly Housing:
G48: # Universal Design Units: | M48: # Units - Previously Subsidized Housing:
G49: # Accessible Units: | M49: # Units - Project-Based Rental Assistance:
G50: % Accessible (hearing) Units: | J50: % | M50: # Units - Housing for Persons with HIV/AIDS:

Sheet 7) Operating Budget
B1: ='6) Units & Revenue'!B1:T1 -> Affordable Housing Commission Rental Production Application/Proforma
B2: ANNUAL OPERATING BUDGET
B3: Project: | C3: =project -> 0 | G3: Developer: | I3: =dev -> 0
B4: Address: | C4: ='1) Application'!F7 -> 0 | H4: AHC-Assisted Units: | I4: ='1) Application'!U23 -> 0
B5: AHC Request: | C5: ='1) Application'!J69 -> 0 | H5: 20% AMI Units: | I5: ='1) Application'!U24 -> 0
B6: Construction: | C6: ='1) Application'!G32 -> 0 | H6: LMI Units: | I6: ='1) Application'!U25 -> 0
B7: Housing: | C7: ='1) Application'!G33 -> 0 | H7: Total Units: | I7: ='1) Application'!J23 -> 0
B10: REVENUE | D10: Annual | E10: Per Unit | F10: % Adj Income | H10: Operating | I10: Annual | J10: Per Unit | K10: % Adj Income
B11: Gross Rent Potential | D11: ='6) Units & Revenue'!T29 -> 0 | E11: =D11/'1) Application'!$J$23 ->  | H11: Security | J11: =I11/'1) Application'!$J$23 -> 
B12: Other Revenue | D12: ='6) Units & Revenue'!T41 -> 0 | E12: =D12/'1) Application'!$J$23 ->  | H12: Common Electricity | J12: =I12/'1) Application'!$J$23 -> 
B13: Subtotal | D13: =SUM(D11:D12) -> 0 | E13: =D13/'1) Application'!$J$23 ->  | H13: Water/Sewer | J13: =I13/'1) Application'!$J$23 -> 
B14: Combined Vacancy Rate | C14: =Compliance!D7 -> 0.07 | D14: =D13*C14 -> 0 | E14: =D14/'1) Application'!$J$23 ->  | H14: Gas | J14: =I14/'1) Application'!$J$23 -> 
B15: Adjusted Gross Income | D15: =D13-D14 -> 0 | E15: =D15/'1) Application'!$J$23 ->  | H15: Trash Removal | J15: =I15/'1) Application'!$J$23 -> 
H16: Payroll | J16: =I16/'1) Application'!$J$23 -> 
B17: OPERATING EXPENSES | H17: Payroll Taxes & Fringes | J17: =I17/'1) Application'!$J$23 -> 
H18: Other: | J18: =I18/'1) Application'!$J$23 -> 
B19: Administrative Costs | D19: Annual | E19: Per Unit | H19: Other: | J19: =I19/'1) Application'!$J$23 -> 
B20: Advertising | E20: =D20/'1) Application'!$J$23 ->  | H20: Other: | J20: =I20/'1) Application'!$J$23 -> 
B21: Management | E21: =D21/'1) Application'!$J$23 ->  | H21: Subtotal | I21: =SUM(I11:I20) -> 0 | J21: =I21/'1) Application'!$J$23 ->  | K21: =(I21/$D$15) -> 
B22: Legal/Partnership | E22: =D22/'1) Application'!$J$23 -> 
B23: Accounting/Audit | E23: =D23/'1) Application'!$J$23 ->  | H23: Escrows & Reserves | I23: Annual | J23: Per Unit
B24: Compliance Monitoring | E24: =D24/'1) Application'!$J$23 ->  | H24: Insurance | J24: =I24/'1) Application'!$J$23 -> 
B25: Other: | E25: =D25/'1) Application'!$J$23 ->  | H25: Real Estate Taxes | J25: =I25/'1) Application'!$J$23 -> 
B26: Other: | E26: =D26/'1) Application'!$J$23 ->  | H26: Other Taxes | J26: =I26/'1) Application'!$J$23 -> 
B27: Other: | E27: =D27/'1) Application'!$J$23 ->  | H27: Other | J27: =I27/'1) Application'!$J$23 -> 
B28: Other: | E28: =D28/'1) Application'!$J$23 ->  | H28: Other: | J28: =I28/'1) Application'!$J$23 -> 
B29: Subtotal | D29: =SUM(D20:D28) -> 0 | E29: =D29/'1) Application'!$J$23 ->  | F29: =(D29/$D$15) ->  | H29: Other: | J29: =I29/'1) Application'!$J$23 -> 
H30: Other: | J30: =I30/'1) Application'!$J$23 -> 
B31: Maintenance | D31: Annual | E31: Per Unit | H31: Subtotal | I31: =SUM(I24:I30) -> 0 | J31: =I31/'1) Application'!$J$23 ->  | K31: =(I31/$D$15) -> 
B32: Decorating | E32: =D32/'1) Application'!$J$23 -> 
B33: Repairs | E33: =D33/'1) Application'!$J$23 ->  | H33: Total Operating Expenses | I33: =D29+D40+I21+I31 -> 0 | J33: =I33/'1) Application'!J23 ->  | K33: =(I33/$D$15) -> 
B34: Exterminating | E34: =D34/'1) Application'!$J$23 -> 
B35: Grounds | E35: =D35/'1) Application'!$J$23 ->  | H35: Replacement Reserve | J35: =I35/'1) Application'!J23 -> 
B36: Other | E36: =D36/'1) Application'!$J$23 ->  | H36: Op Expenses + Replace. Reserve | I36: =I35+I33 -> 0
B37: Other: | E37: =D37/'1) Application'!$J$23 ->  | H37: NET OPERATING INCOME | I37: =D15-I33-I35 -> 0 | J37: =E15-J33-J35 ->  | K37: =(I37/$D$15) -> 
B38: Other: | E38: =D38/'1) Application'!$J$23 -> 
B39: Other: | E39: =D39/'1) Application'!$J$23 -> 
B40: Subtotal | D40: =SUM(D32:D39) -> 0 | E40: =D40/'1) Application'!$J$23 ->  | F40: =(D40/$D$15) ->  | H40: Estimated Mortgage
H41: Debt Coverage Ratio Year 1 | I41: =Compliance!D17 -> 1.25
B42: Annual Income and Expenses | H42: Interest Rate
B43: Adjusted Gross Income | E43: =D15 -> 0 | H43: Term
B44: Annual Operating Expense + Replacement Reserve | E44: =I33+I35 -> 0 | H44: Annual Payment | I44: =I37/I41 -> 0
B45: Net Operating Income (Effective Income - Expenses) | E45: =D15-I36 -> 0 | H45: Mortgage Amount (PV) | I45: =PV(I42/12,I43*12,-I44/12) -> 0
B46: Annual Debt Service priority loan 1 | E46: =I44 -> 0
B47: Annual Debt Service priority loan 2 | H47: NCF Year 1 (stabilized) | I47: =I37-I44 -> 0 | J47: =I47/'1) Application'!J23 -> 
B48: Annual Debt Service AHC (based on 30-year amortization) | E48: =('4) Sources & Uses'!F45)/30 -> 0
B49: AHC Underwriting Summary
B50: 1. General Justification for Funding:
B52: 2. Why is the project needed?
B53: 3. Examine the sources & uses:
B54: a. Are costs reasonable (necessary & sufficient)?
B55: b. Has adequate funding been secured?
B56: c. Strong financial and community support?
B57: c. Does the project support its debt?
B58: 4. Assess neighborhood market conditions:
B59: a. Equitably invests in LMI housing to improve life?
B60: b. Sound plan to lease units quickly to eligible tenants?
B61: c. Concerns & Other info:
B62: 5. Assess the capacity of the developer.
B63: a. Completed similar projects successfully?
B64: b. Any problem projects current or past?
B65: c. Concerns & Other info:
B66: 6. Assess project risks.
B67: a. Is project likely to be completed in a timely manner?
B68: b. Any foreseeable obstacles to completion?
B69: c. How will team mitigate risk?
B70: d. Concerns & Other info:

Sheet 8) Cash Flow
A1: Affordable Housing Commission Rental Production Application
A2: Cash Flow
A3: Project: | B3: =project -> 0 | F3: Developer: | H3: =dev -> 0
A4: Address: | B4: ='1) Application'!F7 -> 0 | F4: AHC-Assisted Units: | H4: ='1) Application'!U23 -> 0
A5: Construction: | C5: ='1) Application'!G32 -> 0 | F5: 20% AMI Units: | H5: ='1) Application'!U24 -> 0
A6: Housing: | C6: ='1) Application'!G33 -> 0 | F6: LMI Units: | H6: ='1) Application'!U25 -> 0
F7: Total Units: | H7: ='1) Application'!J23 -> 0
H10: Year 1
A11: REVENUE
B12: Gross Income Potential | H12: ='7) Operating Budget'!D11 -> 0
B13: Operating Subsidy (source)
B14: Vacancy Factor | D14: ='7) Operating Budget'!C14 -> 0.07 | H14: ='7) Operating Budget'!D14 -> 0
A15: Net Income | H15: =H12+H13-H14 -> 0
A18: OPERATING EXPENSES | I18: % Adj Income
B19: Administration | H19: ='7) Operating Budget'!D29 -> 0 | I19: ='7) Operating Budget'!F29 -> 
B20: Maintenance | H20: ='7) Operating Budget'!D40 -> 0 | I20: ='7) Operating Budget'!F40 -> 
B21: Operating | H21: ='7) Operating Budget'!I21 -> 0 | I21: ='7) Operating Budget'!K21 -> 
B22: Escrows & Reserves | H22: ='7) Operating Budget'!I31 -> 0 | I22: ='7) Operating Budget'!K31 -> 
A23: Total Operating Expenses | H23: =SUM(H19:H22) -> 0 | I23: =SUM(I19:I22) -> 
A25: Net Operating Income | H25: =H15-H23 -> 0
A26: Per Unit | H26: =H25/'1) Application'!J23 -> 
A31: Replacement Reserve Contribution | H31: ='7) Operating Budget'!I35 -> 0
A32: AHC Annual Debt Service | H32: ='4) Sources & Uses'!J25 -> 0
A33: Other Debt Service | H33: ='4) Sources & Uses'!J34-'4) Sources & Uses'!J25 -> 0
A34: Debt Coverage Ratio | H34: =('7) Operating Budget'!I37-'7) Operating Budget'!I35)/('8) Cash Flow'!H32+'8) Cash Flow'!H33) -> 
A35: CASH FLOW | H35: =H25-H31-H32-H33 -> 0
A37: Payments Out of Cash Flow: | D37: identify
A38: Payments Out of Cash Flow: | D38: identify
A40: FINAL CASH FLOW | H40: =H35-H37-H38 -> 0
B41: Per Unit | H41: =H40/'1) Application'!J23 -> 

Sheet 9) MVA
A1: Affordable Housing Commission Rental Production Application
A2: Utilizes 2019 Residential Market Analysis
A4: Project: | C4: =project -> 0 | D4: Project Address: | E4: ='1) Application'!F7 -> 0
D5: Total Units: | E5: ='1) Application'!J23 -> 0
A6: Developer: | C6: =dev -> 0 | D6: AHC Units: | E6: ='1) Application'!U23 -> 0
A7: AHC Request: | C7: ='1) Application'!J69 -> 0 | D7: 20% AMI Units: | E7: ='1) Application'!U24 -> 0
A8: Construction: | C8: ='1) Application'!G32 -> 0 | D8: LMI Units: | E8: ='1) Application'!U25 -> 0
A9: Housing: | C9: ='1) Application'!G33 -> 0
C10: Instructions
A11: 1. | C11: Click on Website: | D11: www.stlouis-mo.gov/data/dashboards/market-value-analysis/index.cfm
A12: 2. | C12: Click "OK" in blue box (lower right splash screen).
A13: 3. | C13: Enter primary site address.
A14: 4. | C14: Click on black dot
A15: 5. | C15: A new window with MVA Block Group Statistics will pop up.
A16: 6. | C16: Maximize window by clicking on icon in upper right corner.
A17: 7. | C17: Select text while scrolling down and copy all text.
A18: 8. | C18: Paste selected text below (in yellow box).

Sheet 10) Priorities
A1: Affordable Housing Commission Rental Production Application
A2: Funding Priorities
B3: Project: | D3: ='1) Application'!F6 -> 0 | I3: AHC-assisted Units: | K3: ='1) Application'!U23 -> 0
B4: Developer: | D4: =dev -> 0 | I4: ≤20% AMI Units: | K4: ='1) Application'!U24 -> 0
B5: Address: | D5: ='1) Application'!F7 -> 0 | I5: LMI Units: | J5: LMI Units: | K5: ='1) Application'!U25 -> 0
H6: Total Units: | K6: ='1) Application'!J23:K23 -> 0
A7: Priorities:
A8: 1. | B8: Will this proposal create or preserve housing/shelter for households ≤20% of the area median income?
A9: - | B9: If yes, state the number of ≤20% AMI units:
A10: 2. | B10: Proposes permanent supportive housing for special needs & vulnerable households ≤30% AMI?
A11: - | B11: If yes, state the number of ≤30% AMI permanent supportive housing units:
A12: 3. | B12: Will this proposal prevent homelessness?
A13: - | B13: If yes, explain how the project prevents homelessness:
B14: This project prevents homelessness by
A21: 4. | B21: Will this proposal create affordable housing while advancing ≥15 Sustainability Plan objectives?
B23: All applicants must complete the Sustainability Impact Statement at the end of the application.
A25: http://www.stlouis-mo.gov/government/departments/planning/documents/city-of-st-louis-sustainability-plan.cfm
A27: Proximity to public transportation
A28: 5. | B28: Is this development within one-half mile of public transportation?
A29: - | B29: MetroLink Station/Bus Line Name:
A30: - | B30: Station/Stop Address: | H30: Distance: | K30: mile(s)
A33: Comprehensive Energy Efficient Rehabilitation
A35: 6. | B35: Is this a comprehensive, energy efficient rehab that will be designed & built to a national green building standard? Or, at completion will the project have an energy audit and attain a HERS of 85 or less?
A36: - | B36: If yes, indicate which green standard:
A39: 7. | B39: Proposes housing with three or more bedrooms & serves households with incomes ≤80% AMI.
B41: Summary
A42: =A8 -> 1. | B42: =K8 -> 0 | C42: ≤20% AMI
A43: =A10 -> 2. | B43: =K10 -> 0 | C43: ≤30% AMI & PSH
A44: =A12 -> 3. | B44: =K12 -> 0 | C44: Prevents Homeless
A45: =A21 -> 4. | B45: =K21 -> 0 | C45: ≥15 Green Object.
A46: =A28 -> 5. | B46: =K28 -> 0 | C46: Public Transit
A47: =A35 -> 6. | B47: =K35 -> 0 | C47: EE Rehab
A48: =A39 -> 7. | B48: =K39 -> 0 | C48: 3+ Bedrooms
A49: Total | B49: =COUNTIF(B42:B48, "Yes") -> 0 | C49: Priorities to be attained

Sheet 11) UD
A1: Affordable Housing Commission Rental Production Application
A2: Universal Design Budget
B3: Project: | C3: =project -> 0 | H3: AHC Units: | I3: ='1) Application'!U23 -> 0
B4: Developer: | C4: =dev -> 0 | H4: 20% AMI Units: | I4: ='1) Application'!U24 -> 0
B5: Address: | C5: ='1) Application'!F7 -> 0 | H5: LMI Units: | I5: ='1) Application'!U25 -> 0
H6: Total Units | I6: ='1) Application'!U23 -> 0
A8: u | B8: Universal Design (UD) Requirements (Complete for New Construction Only)
A10: All new construction projects must adhere to the Commission's Universal Design Requirements. AHC's UD Requirements are available in hard copy from AHC, and www.affordablehousingcommissonstl.org.
A14: Universal Design Budget
A15: Materials/Supplies | E15: Cost without UD | G15: Additional Cost due to UD | J15: Total Cost
J16: =E16+G16 -> 0
J17: =E17+G17 -> 0
J18: =SUM(E18:I18) -> 0
J19: =SUM(E19:I19) -> 0
J20: 0
J21: 0
J22: 0
J23: 0
J24: 0
J25: 0
J26: 0
A27: Subtotal | E27: =SUM(E16:F26) -> 0 | G27: =SUM(G16:I26) -> 0 | J27: =SUM(J16:K26) -> 0
A29: Other | E29: Cost without UD | G29: Additional Cost due to UD | J29: Total Cost
J30: =SUM(E30:I30) -> 0
J31: =SUM(E31:I31) -> 0
J32: 0
J33: 0
J34: 0
J35: 0
J36: 0
A37: Subtotal | E37: =SUM(E30:F36) -> 0 | G37: =SUM(G30:I36) -> 0 | J37: =SUM(J30:K36) -> 0
A39: Number of AHC-assisted, universally designed homes in project: | J39: ='1) Application'!U23 -> 0
A40: Number of affordable homes in project: | J40: ='1) Application'!U25 -> 0
A41: Number of homes in project: | J41: ='1) Application'!J23 -> 0
A42: Cost for Universal Design | J42: =G37+G27 -> 0
A43: Cost for Universal Design per AHC-Assisted Home | J43: =J42/J39 -> 

Sheet 12) Living Wage
A1: LIVING WAGE ACKNOWLEDGEMENT AND ACCEPTANCE DECLARATION
B5: (To be completed by each respondent to a bid/proposal solicitation when that solicitation has included Living Wage Advertisement/Solicitation Language)
A9: CONTRACTING AGENCY | H9: Affordable Housing Commission
A11: AGENCY CONTRACT NUMBER | H11: 1430010
A13: BIDDER'S PROPONENT'S NAME:
A15: DATE PREPARED:
A17: PREPARED BY:
A19: PREPARER'S TELEPHONE NUMBER:
A21: PREPARER'S E-MAIL ADDRESS:
A23: PREPARER'S CELL PHONE NUMBER:
A25: PREPARER'S ADDRESS AND ZIP CODE:
A27: As the authorized representative of the above-referenced bidder or proponent, I hereby acknowledge that the bidder/proponent understands that the contract or agreement that will be executed with a successful bidder/proponent pursuant to this solicitation
A34: AUTHORIZED REPRESENTATIVE CERTIFICATION:
A37: Signature
A40: NAME:
A42: TITLE:
A44: DATE:
A48: Living Wage Change/No Change Affidavit for Contracts With
A49: Not-For-Profit Entities
B52: I | I52: swear that there have been no changes in
H53: circumstances affecting its earlier certification as
A54: a non-profit entity conforming to the definition of Exempt Non-Profit Organization in accordance with the Living Wage Ordinance 65597 Subparagraph (A)(iv). I swear there have been no material changes in the information provided to Affordable Housing Commission the organization's IRS Tax-Exemption Status Determination Letter, Articles of Incorporation and By-laws submitted on
E55: .
A58: I specifically swear the following changes have been made (Documentation of Changes shall be submitted with this affidavit):
B62: Signature | I62: Date
A64: State of | G64: , City/County of
A66: On this | C66: day of | F66: 2024 | G66: before me appeared
A67: to me personally known, who, being duly sworn, did execute the foregoing affidavit and did state that he or
A68: she was properly authorized by | M68: ,
E69: name of firm
A70: to execute the affidavit and did so as his or her free act and deed.
A81: (SEAL/STAMP)
A83: Notary Public | H83: Commission Expires

Sheet 13) SIS
C1: EXHIBIT E
C2: SUSTAINABILITY IMPACT STATEMENT
A3: Project: | C3: ='1) Application'!F6 -> 0
A4: Developer: | C4: ='1) Application'!E89 -> 0
C5: SUSTAINABILITY IMPACT STATEMENT
C6: Below are the Objectives in the City's Sustainability Plan. Indicate activities in your project that advance the City's Sustainability Plan with a "1" in Column D | D6: Included
C8: Urban Character, Vitality & Ecology
C9: A. Support Designated Districts that Focus on Job Creation and Economic Prosperity
A10: 1 | C10: Reinforce the City's Central Corridor as the dynamic "heart" of the region
A11: 2 | C11: Provide and market a smart grid, Wi-Fi Hot spots and technological infrastructure
A12: 3 | C12: Develop designated areas via incentives for "green" and technical industries
A13: 4 | C13: Increase riverfront development and provide safe public access and associated recreational activities
A14: 5 | C14: Provide development incentives to encourage transit-oriented-development
C16: B. Develop Healthy, Compact, Transit-Served Smart Neighborhoods
A17: 1 | C17: Prioritize infill development to develop thriving compact communities and vibrant mixed-use main streets
A18: 2 | C18: Update local street design standards and implement the Complete Streets Ordinance
A19: 3 | C19: Create Citywide, and multiple neighborhood scale mobility plans
A20: 4 | C20: Discourage development that reduces transit, bike, and pedestrian use
A21: 5 | C21: Create Form-Based Code Overlay Districts
A22: 6 | C22: Expand on the safe routes to school program for neighborhood children
A23: 7 | C23: Encourage communities to improve their own neighborhood
C25: C. Strengthen Use, Access, and Programming of Civic Amenities, Public Spaces and Streets
A26: 1 | C26: Design public spaces and neighborhood streets as gathering spaces for people
A27: 2 | C27: Increase support and funding to bring programs and activities to public spaces
A28: 3 | C28: Expand neighborhood access to school grounds and other public facilities during off times
A29: 4 | C29: Improve school yards, playgrounds, fields, and gyms for physical activity
A30: 5 | C30: Maintain public spaces and neighborhood streets
C32: D. Support and Increase the City's Greenscape, Including its Existing Park System and Tree Canopy
A33: 1 | C33: Ensure all residents have access to parks, recreation facilities, and open spaces
A34: 2 | C34: Develop a healthy active living program that utilizes City parks
A35: 3 | C35: Development a regional greenway and trail system
A36: 4 | C36: Develop funding, operations, and management partnerships for public parks
A37: 5 | C37: Update City park and open space plans
A38: 6 | C38: Increase visual identity and branding of City parks
A39: 7 | C39: Expand the City's tree canopy
A40: 8 | C40: Develop a City-wide public and private reforestation campaign
A41: 9 | C41: Utilize existing park and green space improvements to drive economic and community development
A42: 10 | C42: Use volunteers as park stewards for all City parks
C44: E. Promote Conservation and Revitalization of the City's Unique Biodiversity and Natural Resources
A45: 1 | C45: Celebrate and increase activity along the Mississippi Riverfront
A46: 2 | C46: Remove/change infrastructure to improve riverfront access
A47: 3 | C47: Restore, clean and activate the City's waterways
A48: 4 | C48: Conduct a regional natural resources inventory and implement protections
A49: 5 | C49: Promote inclusion of native plants and habitats on public and private land
A50: 6 | C50: Provide public education on the City's natural heritage and resources
A51: 7 | C51: Create a long range City wildlife plan to connect key wildlife areas
C53: F. Preserve the City's Historically & Architecturally Significant Districts, Buildings, Landmarks, and Landscapes
A54: 1 | C54: Preserve and reuse buildings as a means of achieving sustainability
A55: 2 | C55: Continue to integrate preservation into the planning and building approval process
A56: 3 | C56: Create additional events, resources and publications that document and celebrate the City's heritage
A57: 4 | C57: Protect historic residential and commercial properties vulnerable to foreclosure, tax forfeiture, or demolition
A58: 5 | C58: Promote the redevelopment of historic homes and commercial properties
A59: 6 | C59: Prevent scavenging of bricks, metals, and other building materials from vacant buildings
A60: 7 | C60: Encourage the re-use of historic building materials
A61: 8 | C61: Promote public engagement in the historic preservation movement
C63: G. Increase Access to Affordable Housing in Neighborhoods with Access to Transit and Amenities
A64: 1 | C64: Develop affordable housing in concert with long range transit and economic development planning
A65: 2 | C65: Encourage mixed income/use affordable housing in high amenity neighborhoods
A66: 3 | C66: Expand inclusionary policies in order to create economically-integrated communities
A67: 4 | C67: Integrate low income housing into market-rate and mixed use developments
A68: 5 | C68: Promote neighborhood stabilization efforts
A69: 6 | C69: Experiment with new ways to raise funds and build partnerships to build sustainable and affordable housing
A70: 7 | C70: Support the development of housing with embedded supportive services
A71: 8 | C71: Offer housing that is energy efficient and environmentally sustainable
C73: H. Encourage Creative, Smart and Sustainable Uses for Under-Utilized Land and Buildings
A74: 1 | C74: Develop a City-wide strategic plan for maintaining and developing vacant land and property
A75: 2 | C75: Actively market and publicize the available properties and buildings that LRA owns
A76: 3 | C76: Provide special lot-purchasing programs and encourage creative temporary or permanent land uses
A77: 4 | C77: Continue to remove site contamination and promote brownfield redevelopment
A78: 5 | C78: Assess the viability of employing natural systems for remediation of contaminated land
A79: 6 | C79: Maintain appearance of vacant land and abandoned properties
A80: 7 | C80: Take action to eliminate illegal dumping and other environmental crimes
A81: 8 | C81: Enhance community cleaning and beautification efforts
C83: I. Build a Vibrant, Community-Based Agriculture Industry
A84: 1 | C84: Facilitate agriculture practices with zoning code updates
A85: 2 | C85: Broaden the definition of acceptable forms of farming
A86: 3 | C86: Develop policies and programs that permit leasing of vacant lots for community gardens
A87: 4 | C87: Ensure urban agriculture is a profitable, viable enterprise
A88: 5 | C88: Partner with neighborhoods and developers to provide a community development aspect to urban agriculture
A89: 6 | C89: Incubate innovative new urban agriculture ventures
C91: J. Facilitate Place-Based, Integrated Sustainability Planning
A92: 1 | C92: Engage in place-based planning and improvements around community anchors
A93: 2 | C93: Use zoning and land-use planning to foster sustainable development
A94: 3 | C94: Employ form-based zoning to promote healthy, compact and active communities
A95: 4 | C95: Preserve neighborhood residential areas and commercial and mixed uses on corners and major corridors
A96: 5 | C96: Increase the effectiveness of major commercial corridors
A97: 6 | C97: Develop codes for transit oriented development districts
A98: 7 | C98: Integrate sustainable parking practices into neighborhood and district plans
A99: 8 | C99: Incorporate sustainability in economic development programs
A100: SAA2 | C100: Make LRA land available at no cost for smart, productive, create re-use of the land
A101: SAA4 | C101: Increase the number of trees planted by 16,000 or 15%
C103: Arts, Culture & Innovation
C104: A. Utilize the Arts, Culture, Design, Creative, and Innovation Industries for Economic and Community Development
A105: 1 | C105: Continue to attract and sponsor major arts, design, and cultural events
A106: 2 | C106: Market the City's arts, cultural, and innovative industries in order to attract and retain "young professionals" and the "creative class"
A107: 3 | C107: Include youth development and education within art and culture projects and programs
A108: 4 | C108: Encourage the development of affordable artist housing, studios, and venues
A109: 5 | C109: Diversify the City's range of arts, creative, and innovation industries
A110: 6 | C110: Develop a long-range "arts culture and innovation" policy and master plan
A111: 7 | C111: Encourage sustainable practices and community-wide leadership
C113: B. Increase Affordable and Equitable Access to a Diversity of Arts & Culture
A114: 1 | C114: Provide affordable after-school, summer sports and arts camps
A115: 2 | C115: Ensure existing arts and cultural events and venues are easily accessible
A116: 3 | C116: Provide all residents with access to basic arts and cultural amenities, experiences, events, instruction, and resources
A117: 4 | C117: Support the expansion of the Zoo Museum District (ZMD) to additional venues
A118: 5 | C118: Ensure all residents have access to information about arts and cultural events
C120: C. Develop Multi-Use, Transit Accessible Arts and Cultural Districts
A121: 1 | C121: Ensure arts & cultural districts are multi-use, walkable, and well served by transit
A122: 2 | C122: Facilitate development of arts, culture, and innovation TOD's
A123: 3 | C123: Encourage synergies within arts and cultural development
A124: 4 | C124: Ensure arts and cultural districts remain affordable and diverse
A125: 5 | C125: Target developing arts & cultural districts for streetscape and public space improvements
C127: D. Encourage Innovation through Smart Learning Hubs and Venture Capital
A128: 1 | C128: Develop smart learning hubs as centers of research and innovation
A129: 2 | C129: Improve access to smart technology in all innovation districts and corridors
A130: 3 | C130: Facilitate venture capital and human capital support for smart learning hubs
A131: 4 | C131: Develop a systematic commitment to creating a culture of innovation
A132: 5 | C132: Create a social and environmental innovation research lab for sustainability
C134: E. Encourage Public Art and Design that Builds Vibrancy and Identity
A135: 1 | C135: Use distinctive public art, architecture, landscape, and streetscape to build City and neighborhood identity
A136: 2 | C136: Implement the 1% for public art program
A137: 3 | C137: Expand arts and cultural events and out-door programs
A138: 4 | C138: Use temporary public art projects and programs to revitalize underutilized City areas
A139: 5 | C139: Develop a long-range public art and design plan
A140: 6 | C140: Foster art and design that beautifies public transit
A141: 7 | C141: Encourage collaborations that build places and destinations through art
C143: F. Promote and Develop Arts, Cultural and Innovation Facilities, Resources, and Events
A144: 1 | C144: Revitalize existing, and develop new arts and cultural facilities
A145: 2 | C145: Encourage the expansion of arts and cultural events and showcases
A146: 3 | C146: Create a City-wide "art and design week"
A147: 4 | C147: Develop a cohesive City-wide national marketing strategy
A148: 5 | C148: Expand existing online resources for information on arts and culture
A149: 6 | C149: Develop a "homesteading" live/work program
A150: 7 | C150: Assist artists, cultural groups and venues in the promotion of their work
C152: G. Build Arts, Design and Cultural Leadership, Volunteerism, Stewardship and Funding
A153: 1 | C153: Provide leadership training in community oriented arts
A154: 2 | C154: Foster collaboration between arts and cultural organizations to share knowledge and build capacity
A155: 3 | C155: Harness community energy and interest in the arts through volunteer programs
A156: 4 | C156: Involve artists and the "creative class" in the community
A157: 5 | C157: Support small / mid-sized community arts and culture organizations and individual artists
A158: 6 | C158: Develop partnerships to find new venues for artists and creative industries
A159: SAA6 | C159: Build Phase II of CORTEX bioscience and technology research district
C161: Empowerment, Diversity & Equity
C162: A. Embrace the Value of Diversity, Aspire Towards Equity, and Attract and Retain a Diverse Population and Culture
A163: 1 | C163: Support and strengthen programs to retain the City's diverse population
A164: 2 | C164: Conduct an open dialogue within the community, educational institutions, and businesses about race, gender, class, and lifestyle differences
A165: 3 | C165: Enhance opportunities available for minorities, women, and the disadvantaged
A166: 4 | C166: Establish St. Louis as a community of opportunity for all lifestyles
A167: 5 | C167: Offer a variety of cultural events and awareness programs that celebrate diversity in the City of St. Louis
A168: 6 | C168: Assist those who immigrate to the City of St. Louis and seek to attract new, diverse residents
A169: 7 | C169: Enforce civil and equal rights for all
C171: B. Encourage Civic Engagement, Transparency and Leadership
A172: 1 | C172: Involve the public in decisions that are relevant to their communities
A173: 2 | C173: Expand accessibility of public meetings to increase public input on community issues
A174: 3 | C174: Increase turnout for voting opportunities
A175: 4 | C175: Promote the diversity of City boards and commissions to reflect the City's cultural, economic, social, and geographic mix
A176: 5 | C176: Empower community development corporations, neighborhood advisory committees, and sustainability advocacy groups
C178: C. Promote Youth Development, Education, Engagement and Empowerment
A179: 1 | C179: Provide early-education and supplemental youth education programs
A180: 2 | C180: Provide affordable after-school, summer enrichment, and volunteer programs
A181: 3 | C181: Develop supervised entertainment, recreation, and commercial areas for youth
A182: 4 | C182: Provide prevention/intervention programs, and mental/emotional health counseling
A183: 5 | C183: Direct youth towards college and technical school from an early age
A184: 6 | C184: Create opportunities for youth as they enter young adulthood and the workforce
A185: 7 | C185: Develop a green jobs program for youth
A186: 8 | C186: Encourage youth civic engagement at all levels
A187: 9 | C187: Improve the availability of transportation for youth
A188: 10 | C188: Ensure youth and families have access to healthy food
C190: D. Promote Senior Civic Involvement, Empowerment, and Intergenerational Engagement
A191: 1 | C191: Encourage and facilitate "Aging-In-Place"
A192: 2 | C192: Offer safe, affordable and convenient transportation for seniors
A193: 3 | C193: Encourage intergenerational programs that bring together seniors and youth
A194: 4 | C194: Expand efforts to engage seniors in civic and volunteer programs
A195: 5 | C195: Promote healthy senior living programs at community facilities
C197: E. Reduce Homelessness and Support Low Income Families & the Unemployed
A198: 1 | C198: Develop and enhance the homeless services continuum of care
A199: 2 | C199: Develop measures to prevent people from falling into poverty or homelessness
A200: 3 | C200: Provide a safety net of social services in case of emergencies or personal crisis
A201: 4 | C201: Expand the capacity to create additional affordable housing units
A202: 5 | C202: Create pathways for qualified low-income families to become homeowners
A203: 6 | C203: Support efforts to reduce foreclosures and evictions
A204: 7 | C204: Provide job placement services for the unemployed and underemployed
A205: 8 | C205: Develop an online public resource of available human, medical, and social services in the City
C207: F. Ensure Equal Access to Amenities, Business Opportunities, Transportation, and Safety and Healthy Neighborhoods
A208: 1 | C208: Address blighting and environmental health hazards
A209: 2 | C209: Ensure residents have access to public transit and alternate modes of transportation
A210: 3 | C210: Ensure all neighborhoods are safe and are perceived to be safe
A211: 4 | C211: Ensure equal distribution of healthy food options
A212: 5 | C212: Conduct a City-wide equity assessment
A213: 6 | C213: Ensure the application of universal design and accessibility codes
A214: SAA10 | C214: Implement Board Bill 297 pertaining to workforce inclusion
C216: Health, Well-Being & Safety
C217: A. Advance Positive Behavior, Nonviolent Conflict Resolution, and Crime Prevention
A218: 1 | C218: Establish a community security structure
A219: 2 | C219: Create opportunities for positive dialog between Police officers and the local community
A220: 3 | C220: Develop more school (and afterschool) programs
A221: 4 | C221: Provide services to reduce mental and physical pain and suffering from criminal and emotionally disruptive events
A222: 5 | C222: Plan and design buildings, spaces, and environments for safety
C224: B. Reduce Toxins in the Environment
A225: 1 | C225: Promote awareness, education and program development around air quality issues
... 190 more rows

Sheet 14) 1099
B8: Date:
B10: Contact
B11: Entity Name
B12: Address 1
B13: Address 2
B15: To Whom It May Concern:
B17: The Internal Revenue Service Tax Equity and Fiscal Responsibility Act of 1982 requires the City of St Louis to have either a Social Security Number for individuals or proprietorships, or a Federal Identification on file for all vendors subject to 1099 reportable payments of $600.00 or more.
C20: Please complete the information below and return this letter to us within fifteen days.
B21: WE ARE UNABLE TO PROCESS ANY PAYMENTS WITHOUT THIS INFORMATION.
B23: 1. Check the Appropriate Company | D23: 2. I.D. Number (Complete One)
B25: _____ Corporation | E25: _____­__________________
F26: Federal I.D. xx-xxxxxxx
B27: _____ Partnership
B29: _____ Individual/Proprietorship | C29: Individual/Proprietorship | E29: _______________________
F30: S.S. Number xxx-xx-xxxx
B31: _____ LLC - ____ (Corp) ____ (Partnership)
B32: (Check one of the two above spaces
B33: for tax classification if an LLC)
A35: If you are providing a social security number, please write your name clearly. The IRS will not accept a company name with a social security number for 1099 purposes.
C38: I certify that the information provided above is true, correct and complete.
B40: ________________________________ | D40: _______________________________
B41: Authorized Signature | D41: Title
B44: ________________________________ | D44: _______________________________
B45: Company Name | D45: Date
B48: ________________________________ | D48: _______________________________
B49: Address | D49: City, State, Zip

Sheet Compliance
B1: Rental Production Application/Proforma
B2: COMPLIANCE CHECK
B3: For AHC Staff Use
B4: Project: | C4: =project -> 0
B6: Underwriting Standards | D6: Target | E6: Applicant's # | F6: If outside standards, briefly explain:
B7: Vacancy Rate | D7: 0.07 | E7: ='7) Operating Budget'!C14 -> 0.07
B8: Rent Inflation Rate Years 1-3 | D8: 0.02 | E8: 0.02
B9: Rent Inflation Rate Years 4+ | D9: 0.02 | E9: 0.02
B10: Inflation Rates for Operating Costs | C10: Administrative | D10: 0.03 | E10: 0.03
C11: Operating/Maint. | D11: 0.03 | E11: 0.03
C12: Utilities | D12: 0.03 | E12: 0.03
C13: Taxes/Insurance | D13: 0.03 | E13: 0.03
B14: Replacement Reserve - Rehab | D14: 325 | E14: ='7) Operating Budget'!I35 -> 0
B15: Replacement Reserve - New Construction | D15: 275 | E15: 275
B16: Annual Operating Costs Per Unit | D16: 3500 | E16: ='7) Operating Budget'!J33 -> 
B17: Debt Coverage Ratio Year 1 | D17: 1.25 | E17: ='7) Operating Budget'!I41 -> 1.25
A19: 2024 Income Guidelines
A20: City of St. Louis
A21: Family Size | B21: 1 | C21: 2 | D21: 3 | E21: 4 | F21: 5 | G21: 6 | H21: 7 | I21: 8
A22: 0.2 | B22: =E22*0.7 -> 14448 | C22: =E22*0.8 -> 16512 | D22: =E22*0.9 -> 18576 | E22: =103200*0.2 -> 20640 | F22: =E22*1.08 -> 22291.2 | G22: =E22*1.16 -> 23942.4 | H22: =E22*1.24 -> 25593.6 | I22: =E22*1.3208 -> 27261.312
A23: 0.3 | B23: 21700 | C23: 24800 | D23: 27900 | E23: 31200 | F23: 36580 | G23: 41960 | H23: 47340 | I23: 52720
A24: 0.4 | B24: =E24*0.7 -> 28896 | C24: 33024 | D24: 37152 | E24: =103200*0.4 -> 41280 | F24: =E24*1.08 -> 44582.4 | G24: =E24*1.16 -> 47884.8 | H24: =E24*1.24 -> 51187.2 | I24: =E24*1.3208 -> 54522.624
A25: 0.5 | B25: 36150 | C25: 41300 | D25: 46450 | E25: 51600 | F25: 55750 | G25: 59900 | H25: 64000 | I25: 68150
A26: 0.6 | B26: =E26*0.7 -> 43344 | C26: =E26*0.8 -> 49536 | D26: =E26*0.9 -> 55728 | E26: =103200*0.6 -> 61920 | F26: =E26*1.08 -> 66873.6 | G26: =E26*1.16 -> 71827.2 | H26: =E26*1.24 -> 76780.8 | I26: =E26*1.3208 -> 81783.936
A27: 0.65 | B27: =E27*0.7 -> 46956 | C27: =E27*0.8 -> 53664 | D27: =E27*0.9 -> 60372 | E27: =103200*0.65 -> 67080 | F27: =E27*1.08 -> 72446.4 | G27: =E27*1.16 -> 77812.8 | H27: =E27*1.24 -> 83179.2 | I27: =E27*1.3208 -> 88599.264
A28: 0.7 | B28: 50568 | C28: 57792 | D28: 65016 | E28: =103200*0.7 -> 72240 | F28: =E28*1.08 -> 78019.2 | G28: =E28*1.16 -> 83798.4 | H28: =E28*1.24 -> 89577.6 | I28: =E28*1.3208 -> 95414.592
A29: 0.8 | B29: 57800 | C29: 66050 | D29: 74300 | E29: 82550 | F29: 89200 | G29: 95800 | H29: 102400 | I29: 109000
A30: Source: HUD Income Limits, huduser.gov/portal/datasets, April 2024.
C32: 2024 Fair Market Rent By Unit Bedrooms
B33: 0 Bedrooms | C33: 928 | D33: *Rent may not exceed 30% of household income.
B34: 1 Bedroom | C34: 972
B35: 2 Bedrooms | C35: 1209
B36: 3 Bedrooms | C36: 1565
B37: 4 Bedrooms | C37: 1818
C38: Source: HUD, April 2024
B40: Development Costs Standards | D40: Maximum | H40: Within Limits?
C41: Minimum | E41: Notes | G41: Project #s
B42: Construction Contingency | G42: ='1) Application'!G137:M137 -> 0
B43: New Construction | C43: 0.05 | D43: 0.075 | E43: of Construction - recommendation only | G43: =IF(G42="New Construction",'3) Construction Costs'!U72,"-") -> - | H43: =AND(G43<=D43,G42="New Construction") -> FALSE
B44: Rehab | C44: 0.075 | D44: 0.1 | G44: =IF(G42="Rehab",'3) Construction Costs'!U72,"-") -> - | H44: =AND(G44>=C44,G44<=D44,G42="Rehab") -> FALSE
B45: Developer Fee
B46: New Construction | C46: na | D46: 0.12 | E46: of TDC (excluding Dev Fee itself) | G46: =IF($G$42="New Construction",'2) Development Budget'!P85,"-") -> - | H46: =IF(G46<=D46,"Yes","No") -> No
B47: Rehab | C47: na | D47: 0.15 | G47: =IF($G$42="Rehab",'2) Development Budget'!P85,"-") -> - | H47: =IF(G47<=D47,"Yes","No") -> No
B48: Contractor's Fees
B49: Indirect Overhead | C49: na | D49: 0.06 | E49: of Construction (less profit, overhead, contingency) | G49: ='3) Construction Costs'!P76 -> 0.06 | H49: =IF(G49<=D49,"Yes","No") -> Yes
B50: Direct Overhead | C50: na | D50: 0.02 | E50: of Construction (less profit, overhead, contingency) | G50: ='3) Construction Costs'!P77 -> 0.02 | H50: =IF(G50<=D50,"Yes","No") -> Yes
B51: Profit | C51: na | D51: 0.08 | E51: of Construction (less profit, overhead, contingency) | G51: ='3) Construction Costs'!P78 -> 0.08 | H51: =IF(G51<=D51,"Yes","No") -> Yes
B52: TDC = Total Development Costs
B54: Cost & Compliance
B55: Total Development Costs | D55: ='2) Development Budget'!I112 -> 0
B56: Total AHC Funds Requested | D56: ='4) Sources & Uses'!E25 -> 0
B57: AHC Subsidy as % of Total Development Costs | D57: =D56/D55 -> 
B58: Housing Units Developed
B59: # Units in Project | D59: ='1) Application'!J23 -> 0 | E59: Cost Per Unit | G59: ='4) Sources & Uses'!E21/Compliance!D59 -> 
B60: # LMI units in the Project | D60: ='1) Application'!U25 -> 0 | E60: Cost Per LMI Unit | G60: ='4) Sources & Uses'!E21/Compliance!D60 -> 
B61: #AHC-Assisted 20% AMI Units | D61: ='1) Application'!U24 -> 0 | E61: AHC $ Per 20% AMI Unit | G61: =(D56/D62)*D61 -> 
B62: # AHC-assisted Units | D62: ='1) Application'!U23 -> 0 | E62: AHC $ Per AHC-assisted Unit | G62: =D56/D62 -> 
B63: Affordability Period | D63: 15 or 30 years
B65: Breakdown of AHC Units by Bedroom Type:
B66: Bedrooms | C66: # of Units
B67: 0 Bedroom | C67: ='4) Sources & Uses'!C61 -> 0
B68: 1 Bedroom | C68: ='4) Sources & Uses'!D$61 -> 0
B69: 2 Bedroom | C69: ='4) Sources & Uses'!E$61 -> 0
B70: 3 Bedroom | C70: ='4) Sources & Uses'!F$61 -> 0
B71: 4 Bedroom | C71: ='4) Sources & Uses'!G$61 -> 0
B72: Total | C72: =SUM(C67:C71) -> 0

Sheet Evaluation (hidden)
A1: FALL 2024 RENTAL PROPOSAL EVALUATION
A3: PROPOSAL #: | I3: Ward # | J3: ='1) Application'!O8 -> 0
A4: NAME: | B4: =project -> 0 | F4: DEVELOPER: | H4: =dev -> 0
A5: TYPE of Request: | I5: Amount Requested: | J5: ='1) Application'!J70 -> 0
A6: Repayable Loan | C6: X | I6: Total Project Budget: | J6: ='4) Sources & Uses'!E21 -> 0
A7: Forgivable Loan | C7: X | I7: # ≤20% AMI AHC Units: | J7: ='1) Application'!U24 -> 0
I8: # ≤80% AMI AHC Units: | J8: ='1) Application'!U23 -> 0
A9: PROPOSAL DESCRIPTION (including leverage sources)
A21: Calculation of AHC cost per unit or client served to requested amount: | K21: ='1) Application'!O70 -> 
A22: Calculation of % of total project budget to requested amount: | K22: ='4) Sources & Uses'!E25/'4) Sources & Uses'!E21 -> 
A24: NOFA Priority:
A25: Proposes housing or shelter for persons and families with incomes ≤20% AMI. | K25: ='10) Priorities'!K8 -> 0
A26: Proposes permanent supportive housing for special needs & vulnerable households ≤30% AMI. | K26: ='10) Priorities'!K10 -> 0
A27: Provides assistance to prevent homelessness. | K27: ='10) Priorities'!K12 -> 0
A28: Develops affordable housing units while advancing 15 or more Sustainability Plan objectives. | K28: ='10) Priorities'!K21 -> 0
A29: Develops affordable housing within ½ mile of public transportation. | K29: ='10) Priorities'!K28 -> 0
A30: Comprehensively rehabilitates affordable housing to a green building standard or attains HERS ≤85. | K30: ='10) Priorities'!K35 -> 0
A31: Proposes housing with three or more bedrooms & serves households ≤80% AMI. | K31: ='10) Priorities'!K39 -> 0
A32: Economic Justice Area 1 or 2? | F32: Located North of Delmar? | I32: ='1) Application'!Q18 -> 0 | J32: Priorities | K32: =COUNTIF(K25:K31, "Yes") -> 0
A34: NEW CONSTRUCTION - Designed & built to a national green building standard? | K34: ='1) Application'!P149 -> 0
A35: UD CERTIFICATION: | E35: ='1) Application'!N506 -> 0 | G35: REQUESTS UD WAIVER? | J35: ='1) Application'!U519 -> 0 | K35: N/A Rehab
A36: PREVIOUS AWARDEE: | G36: DATE:
A37: RECENT AWARDS:
A38: Additional Comments/Observations
A42: SUPPORT LETTERS:
A43: DISCLOSURE OF COMMISSIONER CONFLICT (if any):
A45: STAFF RECOMMENDATION: | H45: Amount:
A47: REASONS NOT TO FUND:
A49: STAFF RECOMMENDED TERMS:
A53: COMMISSION APPROVAL: | H53: Amount:
A55: COMMISSION RECOMMENDED TERMS:

Sheet Review (hidden)
A1: FALL 2024 RENTAL PROJECT REVIEW
A3: Project Name: | B3: ='1) Application'!F6 -> 0 | G3: Neighborhood: | I3: ='1) Application'!R7 -> 0
A4: Project Number: | C4: =Evaluation!C3:D3 -> 0 | G4: Ward: | I4: ='1) Application'!O8 -> 0
A5: Applicant/Developer: | C5: ='1) Application'!E89 -> 0 | G5: Project Address: | I5: ='1) Application'!F7 -> 0
A6: Funding Request: | C6: =Evaluation!J5 -> 0 | H6: Sponsor: | I6: ='1) Application'!E418 -> 0
A7: Total Project Cost: | C7: =Evaluation!J6 -> 0 | I7: MBE | J7: WBE
A8: General Contractor: | C8: ='1) Application'!E347 -> 0 | I8: ='1) Application'!T347 -> 0 | J8: ='1) Application'!U347 -> 0
A9: Located in Promise Zone? | C9: ='1) Application'!Q19 -> 0 | H9: Located North of Delmar? | J9: ='1) Application'!Q18 -> 0
A10: Located in Economic Justice Area 1 or 2? | D10: =Evaluation!D32 -> 0
A11: Preferred Repayment Terms: | C11: ='1) Application'!B73 -> 0
A13: Income Served | B13: # Units | C13: LMI Units | D13: AHC-Assisted Units | G13: Support Services to be offered to residents
A14: 20% AMI | B14: ='1) Application'!J31 -> 0 | D14: ='1) Application'!U24 -> 0 | G14: ='1) Application'!B299 -> 0 | H14: Case management
A15: 30% AMI | B15: ='1) Application'!J30 -> 0 | G15: ='1) Application'!B300 -> 0 | H15: Healthcare resources
A16: 40% AMI | B16: ='1) Application'!J29 -> 0 | G16: ='1) Application'!B301 -> 0 | H16: Food
A17: 50% AMI | B17: ='1) Application'!J28 -> 0 | G17: ='1) Application'!B302 -> 0 | H17: Housing counseling
A18: 60% AMI | B18: ='1) Application'!J27 -> 0 | G18: ='1) Application'!B303 -> 0 | H18: Job training & placement
A19: 70% AMI | B19: ='1) Application'!J26 -> 0 | H19: Other, describe below
A20: 80% AMI | B20: ='1) Application'!J25 -> 0
A21: Market-Rate | B21: ='1) Application'!J24 -> 0
A22: Total | B22: =SUM(B14:B21) -> 0 | C22: ='1) Application'!U25 -> 0 | D22: ='1) Application'!U23 -> 0
A24: Interim Leveraging Sources: | F24: Amount | H24: % (of TDC)
A25: ='4) Sources & Uses'!B39 -> Private Construction Loan (bank financing) | F25: ='4) Sources & Uses'!F39 -> 0 | H25: =F25/$C$7 -> 
A26: Developer Equity | F26: ='4) Sources & Uses'!F40 -> 0 | H26: =F26/$C$7 -> 
A27: ='4) Sources & Uses'!B41 -> Deferred Developer Fee | F27: ='4) Sources & Uses'!F41 -> 0
A28: ='4) Sources & Uses'!B42 -> Other: CDA | F28: ='4) Sources & Uses'!F42 -> 0
A29: ='4) Sources & Uses'!B43 -> Other Source 2: | F29: ='4) Sources & Uses'!F43 -> 0
A30: ='4) Sources & Uses'!B44 -> Other Source 3: | F30: ='4) Sources & Uses'!F44 -> 0
A31: ='4) Sources & Uses'!B45 -> AHC Construction Loan requested* | F31: ='4) Sources & Uses'!F45 -> 0
A32: Total Construction Financing | F32: =SUM(F25:G31) -> 0 | H32: =F32/C7 -> 
A34: Permanent Leveraging Sources: | F34: Amount | H34: % (of TDC) | I34: Status | J34: Date
A35: ='4) Sources & Uses'!B24 -> Bank Mortgage | F35: ='4) Sources & Uses'!E24 -> 0 | H35: =F35/$C$7 ->  | I35: ='4) Sources & Uses'!F75 -> 0 | J35: ='4) Sources & Uses'!H75 -> 00:00:00
A36: ='4) Sources & Uses'!B26 -> Estimated MO State Historic Tax Credits | F36: ='4) Sources & Uses'!E26 -> 0 | H36: =F36/$C$7 ->  | I36: ='4) Sources & Uses'!F76 -> 0 | J36: ='4) Sources & Uses'!H76 -> 00:00:00
A37: ='4) Sources & Uses'!B27 -> Estimated Federal Historic Tax Credits | F37: ='4) Sources & Uses'!E27 -> 0 | I37: ='4) Sources & Uses'!F77 -> 0 | J37: ='4) Sources & Uses'!H77 -> 00:00:00
A38: ='4) Sources & Uses'!B29 -> Source 1: CDA | F38: ='4) Sources & Uses'!E29 -> 0 | I38: ='4) Sources & Uses'!F78 -> 0 | J38: ='4) Sources & Uses'!H78 -> 00:00:00
A39: ='4) Sources & Uses'!B30 -> Source 2: | F39: ='4) Sources & Uses'!E30 -> 0 | I39: ='4) Sources & Uses'!F79 -> 0 | J39: ='4) Sources & Uses'!H79 -> 00:00:00
A40: ='4) Sources & Uses'!B31 -> Source 3: | F40: ='4) Sources & Uses'!E31 -> 0 | I40: ='4) Sources & Uses'!F80 -> 0 | J40: ='4) Sources & Uses'!H80 -> 00:00:00
A41: ='4) Sources & Uses'!B32 -> Source 4: | F41: ='4) Sources & Uses'!E32 -> 0 | I41: ='4) Sources & Uses'!F81 -> 0 | J41: ='4) Sources & Uses'!H81 -> 00:00:00
A42: ='4) Sources & Uses'!B33 -> Source 5: | F42: ='4) Sources & Uses'!E33 -> 0 | I42: ='4) Sources & Uses'!F82 -> 0 | J42: ='4) Sources & Uses'!H82 -> 00:00:00
A43: ='4) Sources & Uses'!B28 -> Developer Equity | F43: ='4) Sources & Uses'!E28 -> 0 | I43: ='4) Sources & Uses'!F83 -> 0 | J43: ='4) Sources & Uses'!H83 -> 00:00:00
A44: ='4) Sources & Uses'!B25 -> AHC Permanent Loan requested* | F44: ='4) Sources & Uses'!E25 -> 0 | I44: ='4) Sources & Uses'!E25 -> 0 | J44: ='4) Sources & Uses'!H84 -> 00:00:00
A45: Total Permanent Financing | F45: =SUM(F35:G44) -> 0 | H45: =F45/C7 -> 
A47: Summary | F47: Amount | H47: % (of TDC)
A48: Total Development Cost | F48: ='4) Sources & Uses'!E21 -> 0
A49: Hard Construction Cost | F49: ='3) Construction Costs'!K73 -> 0 | H49: =F49/$C$7 -> 
A50: Soft Costs | F50: ='4) Sources & Uses'!E14+'4) Sources & Uses'!E15+'4) Sources & Uses'!E16+'4) Sources & Uses'!E17+'4) Sources & Uses'!E18+'4) Sources & Uses'!E19+'4) Sources & Uses'!E20 -> 0 | H50: =F50/$C$7 -> 
A51: Developer Fee (included in soft costs) | F51: ='2) Development Budget'!I85 -> 0 | H51: =F51/$C$7 -> 
A52: Builder's Profit (not in hard/soft costs) | F52: ='3) Construction Costs'!K71 -> 0 | H52: =F52/$C$7 -> 
A53: Contingency | F53: ='3) Construction Costs'!K72 -> 0 | H53: =F53/$C$7 -> 
A54: Land & Building | F54: ='2) Development Budget'!I75+'2) Development Budget'!I77 -> 0
A55: Cost Per Unit | F55: =C7/'1) Application'!J23 -> 
A56: Cost Per Square Foot | F56: ='2) Development Budget'!N112 -> 
A57: AHC Funds Per AHC-Assisted Unit | F57: ='4) Sources & Uses'!E25/'1) Application'!U23 -> 
A58: AHC Funds Per 20% AMI AHC-Assisted Unit | F58: ='1) Application'!S70 -> 
A59: AHC % of Total Project Cost | F59: =F44/F48 -> 
A61: Priorities to be Attained | F61: Location
A62: ='10) Priorities'!K8 -> 0 | B62: ≤20% AMI | F62: Located in Promise Zone? | J62: ='1) Application'!Q19 -> 0
A63: ='10) Priorities'!K10 -> 0 | B63: ≤30% AMI & PSH | F63: Located in Economic Justice Area 1 or 2? | J63: =D10 -> 0
A64: ='10) Priorities'!K12 -> 0 | B64: Prevents Homeless | F64: Located North of Delmar: | J64: ='1) Application'!Q18 -> 0
A65: ='10) Priorities'!K21 -> 0 | B65: ≥15 Green Object.
A66: ='10) Priorities'!K28 -> 0 | B66: Public Transit
A67: ='10) Priorities'!K35 -> 0 | B67: EE Rehab
A68: ='10) Priorities'!K39 -> 0 | B68: ='10) Priorities'!C48 -> 3+ Bedrooms
A69: =COUNTIF(A62:A68, "Yes") -> 0 | B69: Priorities to be Attained

Sheet Rating (hidden)
A1: FALL 2024 RENTAL RATING SHEET
A3: Name: | C3: =project -> 0 | J3: Ward # | K3: ='1) Application'!O8 -> 0
A4: Applicant/Developer: | D4: ='1) Application'!E89 -> 0 | J4: Proj. # | K4: =Evaluation!C3 -> 0
A5: Funding Request: | D5: ='4) Sources & Uses'!E25 -> 0
A6: Total Project Cost: | D6: =Review!C7 -> 0
A7: Project Address: | D7: ='1) Application'!F7 -> 0
A8: In the St. Louis Promise Zone? | D8: ='1) Application'!Q19 -> 0 | G8: In Economic Justice Area 1 or 2? | K8: =Evaluation!D32 -> 0
A9: AHC-Assisted Units: | D9: ='1) Application'!U23 -> 0 | H9: Located North of Delmar? | K9: ='1) Application'!Q18 -> 0
A10: ≤20% AMI Units: | D10: ='1) Application'!U24 -> 0 | J10: LMI Units: | K10: ='1) Application'!U25 -> 0
A11: Site control from Land Reutilization Authority? | E11: ='1) Application'!R183 -> 0 | J11: Total Units: | K11: ='1) Application'!J23:K23 -> 0
A12: Neighborhood or housing sponsor: | D12: ='1) Application'!E418 -> 0
A14: Preferred Repayment: | D14: ='1) Application'!B73 -> 0
H16: Good | I16: Fair | J16: Poor | K16: Comments
A17: Energy Efficient
A18: If new construction, the project will be built to a national green building standard.
A19: If rehabilitation, the project incorporates AHC's recommended energy-saving features.
A20: Sources & Uses
A21: Costs are reasonable & sufficient.
A22: Strong financial support and the project supports its debt.
A23: Significant community support.
A24: Neighborhood & Market
A25: Marketing plan supports proposed rents?
A26: Strengthens & capitalizes on existing assets to benefit the neighborhood.
A27: Utilizes the MVA toward a strategic, equitable use of Trust Fund dollars.
A28: Development Team
A29: The project team is qualified & experienced.
A30: Projected time frame: The project is to be complete within 16 months. | F30: ='1) Application'!O343 -> 0 | G30: months
A31: NOFA Priority
A32: Provides housing or shelter for persons or families earning ≤20% AMI. | J32: ='10) Priorities'!K8 -> 0
A33: Provides permanent supportive housing for persons or families earning ≤30% AMI. | J33: ='10) Priorities'!K10 -> 0
A34: Provides assistance to prevent homelessness. | J34: ='10) Priorities'!K12 -> 0
A35: Develops affordable housing units while advancing 15 or more Sustainability Plan objectives. | J35: ='10) Priorities'!K21 -> 0
A36: Develops affordable housing within ½ mile of public transportation. | J36: ='10) Priorities'!K28 -> 0
A37: Comprehensively rehabilitates affordable housing to a national green building standard or attains a HERS of ≤85. | J37: ='10) Priorities'!K35 -> 0
A38: ='10) Priorities'!B39 -> Proposes housing with three or more bedrooms & serves households with incomes ≤80% AMI. | J38: ='10) Priorities'!K39 -> 0
A39: AHC Recommendation for funding | J39: $
A40: AHC Terms:
A42: Comments/Concerns:
